{"text_format":"3","workbook":"xlsx","n_sheets":3,"sheets":["Roadmap-gegevens","Agile-roadmap","Over"],"not_rendered":{"defined_names":5},"read":"whole","date_system":"1900"}

{"sheet":"Roadmap-gegevens","index":0,"n_rows":13,"n_cols":7,"rows_kept":13,"merged":[[12,1,12,4]]}
["Maak in dit werkblad een Agile-roadmap door belangrijke mijlpalen of activiteiten in de tabel Roadmap-gegevens in te voeren.\nDe titel van dit werkblad staat in cel B1. \nInformatie over hoe u dit werkblad gebruikt, waaronder instructies voor schermlezers, staat in het werkblad Over.\nNavigeer verder omlaag in kolom A voor verdere instructies.","Agile-tijdlijngegevens"]
["Tabelkoppen staan in de cellen B2 t/m E2. Gebruik koptekstfilters om de tabel te sorteren en specifieke items te zoeken.\nDe Agile-roadmap werkt het beste wanneer de tabel in oplopende volgorde wordt gesorteerd op Prioriteit, gevolgd door Mijlpaal of Activiteit.\nVoorbeeldgegevens staan in de tabel Roadmap-gegevens in de cellen B3 t/m E12. \nWanneer een mijlpaal of activiteit is voltooid, werkt u het bijbehorende veld Resultaat bij om de resultaten in het werkblad Agile-roadmap weer te geven. Voer \"Geen verandering\" in om mijlpalen zonder impact te markeren.\nGa naar cel A13 voor de volgende instructie.\n","Doel","Mijlpaal of activiteit","Prioriteit","Resultaat",null,"<-- sorteer tabel op Prioriteit en Mijlpaal of Activiteit, in oplopende volgorde"]
[null,"Huidig","Activiteit 1\nPrototype bouwen","1 - Hoog",null,null,"<-- voeg een resultaat toe voor elke voltooide mijlpaal. Voer \"Geen verandering\" in om mijlpalen zonder impact te markeren."]
[null,"Korte termijn","Activiteit 2\nPrototype demonstreren","1 - Hoog"]
[null,"Huidig","Activiteit 6","1 - Hoog"]
[null,"Toekomst","Activiteit 7\nOntwikkeling van fase 1-implementatie uitbesteden","1 - Hoog"]
[null,"Voltooid","Activiteit 9\nFase 1 goedgekeurd","1 - Hoog","10% gedaald"]
[null,"Toekomst","Activiteit 10","2 - Gemiddeld"]
[null,"Korte termijn","Activiteit 8","2 - Gemiddeld"]
[null,"Voltooid","Activiteit 3","3 - Laag","Geen verandering"]
[null,"Toekomst","Activiteit 4","3 - Laag"]
[null,"Huidig","Activiteit 5","3 - Laag"]
["Voeg nieuwe items toe door boven deze regel nieuwe rijen in te voegen in de tabel.\nDit is de laatste instructie in dit werkblad.","Voeg nieuwe items toe door boven deze regel nieuwe rijen in te voegen"]

{"sheet":"Agile-roadmap","index":1,"n_rows":100,"n_cols":8,"rows_kept":100}
["Een Agile-roadmap met mijlpalen en activiteiten uit het werkblad Roadmap-gegevens staat in dit werkblad. \nDe titel staat in cel B1. \nResultaten die de woordgroep \"Geen verandering\" bevatten, worden gemarkeerd in lichtoranje, rgb(255, 230, 210).\nVoltooide mijlpalen of activiteiten worden gemarkeerd in lichtgroen, rgb(237,251,219).","Agile-roadmap"]
["Grafiekkoppen staan in de cellen B2, D2, F2 en H2. Deze heten: Voltooid, Huidig, Korte termijn en Toekomst. Wijzig deze koppen om de selectiewaarden van Doel in de tabel Roadmap-gegevens in het werkblad Roadmap-gegevens te wijzigen.\nDe cellen B3 t/m H20 bevatten de mijlpalen en activiteiten voor de koppen in deze rij. \nMijlpalen en activiteiten worden gemaakt in het werkblad Roadmap-gegevens.\nZorg dat u invoer in dit werkblad NIET wijzigt of verwijdert. Als u inhoud in dit werkblad wilt bijwerken, werkt u de tabel Roadmap-gegevens in het werkblad Roadmap-gegevens bij.\nDit is de laatste instructie in dit werkblad.","Voltooid",null,"Huidig",null,"Korte termijn",null,"Toekomst"]
[null,{"$f":"IFERROR(INDEX(Activiteit,SMALL(IF(Doel=$B$2,ROW(Activiteit)-MIN(ROW(Activiteit))+1),ROWS($B$3:B3)))&\" \"&CHAR(10)&(INDEX(Resultaat,SMALL(IF(Doel=$B$2,ROW(Resultaat)-MIN(ROW(Resultaat))+1),ROWS($B$3:B3))))&CHAR(10),\"\")","v":"Activiteit 9\nFase 1 goedgekeurd \n10% gedaald\n"},null,{"$f":"IFERROR(INDEX(Activiteit,SMALL(IF(Doel=$D$2,ROW(Activiteit)-MIN(ROW(Activiteit))+1),ROWS($B$3:B3)))&CHAR(10),\"\")","v":"Activiteit 1\nPrototype bouwen\n"},null,{"$f":"IFERROR(INDEX(Activiteit,SMALL(IF(Doel=$F$2,ROW(Activiteit)-MIN(ROW(Activiteit))+1),ROWS($B$3:B3)))&CHAR(10),\"\")","v":"Activiteit 2\nPrototype demonstreren\n"},null,{"$f":"IFERROR(INDEX(Activiteit,SMALL(IF(Doel=$H$2,ROW(Activiteit)-MIN(ROW(Activiteit))+1),ROWS($B$3:B3)))&CHAR(10),\"\")","v":"Activiteit 7\nOntwikkeling van fase 1-implementatie uitbesteden\n"}]
[null,{"$f":"IFERROR(INDEX(Activiteit,SMALL(IF(Doel=$B$2,ROW(Activiteit)-MIN(ROW(Activiteit))+1),ROWS($B$3:B4)))&\" \"&CHAR(10)&(INDEX(Resultaat,SMALL(IF(Doel=$B$2,ROW(Resultaat)-MIN(ROW(Resultaat))+1),ROWS($B$3:B4))))&CHAR(10),\"\")","v":"Activiteit 3 \nGeen verandering\n"},null,{"$f":"IFERROR(INDEX(Activiteit,SMALL(IF(Doel=$D$2,ROW(Activiteit)-MIN(ROW(Activiteit))+1),ROWS($B$3:B4)))&CHAR(10),\"\")","v":"Activiteit 6\n"},null,{"$f":"IFERROR(INDEX(Activiteit,SMALL(IF(Doel=$F$2,ROW(Activiteit)-MIN(ROW(Activiteit))+1),ROWS($B$3:B4)))&CHAR(10),\"\")","v":"Activiteit 8\n"},null,{"$f":"IFERROR(INDEX(Activiteit,SMALL(IF(Doel=$H$2,ROW(Activiteit)-MIN(ROW(Activiteit))+1),ROWS($B$3:B4)))&CHAR(10),\"\")","v":"Activiteit 10\n"}]
[null,{"$f":"IFERROR(INDEX(Activiteit,SMALL(IF(Doel=$B$2,ROW(Activiteit)-MIN(ROW(Activiteit))+1),ROWS($B$3:B5)))&\" \"&CHAR(10)&(INDEX(Resultaat,SMALL(IF(Doel=$B$2,ROW(Resultaat)-MIN(ROW(Resultaat))+1),ROWS($B$3:B5))))&CHAR(10),\"\")","v":""},null,{"$f":"IFERROR(INDEX(Activiteit,SMALL(IF(Doel=$D$2,ROW(Activiteit)-MIN(ROW(Activiteit))+1),ROWS($B$3:B5)))&CHAR(10),\"\")","v":"Activiteit 5\n"},null,{"$f":"IFERROR(INDEX(Activiteit,SMALL(IF(Doel=$F$2,ROW(Activiteit)-MIN(ROW(Activiteit))+1),ROWS($B$3:B5)))&CHAR(10),\"\")","v":""},null,{"$f":"IFERROR(INDEX(Activiteit,SMALL(IF(Doel=$H$2,ROW(Activiteit)-MIN(ROW(Activiteit))+1),ROWS($B$3:B5)))&CHAR(10),\"\")","v":"Activiteit 4\n"}]
[null,{"$f":"IFERROR(INDEX(Activiteit,SMALL(IF(Doel=$B$2,ROW(Activiteit)-MIN(ROW(Activiteit))+1),ROWS($B$3:B6)))&\" \"&CHAR(10)&(INDEX(Resultaat,SMALL(IF(Doel=$B$2,ROW(Resultaat)-MIN(ROW(Resultaat))+1),ROWS($B$3:B6))))&CHAR(10),\"\")","v":""},null,{"$f":"IFERROR(INDEX(Activiteit,SMALL(IF(Doel=$D$2,ROW(Activiteit)-MIN(ROW(Activiteit))+1),ROWS($B$3:B6)))&CHAR(10),\"\")","v":""},null,{"$f":"IFERROR(INDEX(Activiteit,SMALL(IF(Doel=$F$2,ROW(Activiteit)-MIN(ROW(Activiteit))+1),ROWS($B$3:B6)))&CHAR(10),\"\")","v":""},null,{"$f":"IFERROR(INDEX(Activiteit,SMALL(IF(Doel=$H$2,ROW(Activiteit)-MIN(ROW(Activiteit))+1),ROWS($B$3:B6)))&CHAR(10),\"\")","v":""}]
[null,{"$f":"IFERROR(INDEX(Activiteit,SMALL(IF(Doel=$B$2,ROW(Activiteit)-MIN(ROW(Activiteit))+1),ROWS($B$3:B7)))&\" \"&CHAR(10)&(INDEX(Resultaat,SMALL(IF(Doel=$B$2,ROW(Resultaat)-MIN(ROW(Resultaat))+1),ROWS($B$3:B7))))&CHAR(10),\"\")","v":""},null,{"$f":"IFERROR(INDEX(Activiteit,SMALL(IF(Doel=$D$2,ROW(Activiteit)-MIN(ROW(Activiteit))+1),ROWS($B$3:B7)))&CHAR(10),\"\")","v":""},null,{"$f":"IFERROR(INDEX(Activiteit,SMALL(IF(Doel=$F$2,ROW(Activiteit)-MIN(ROW(Activiteit))+1),ROWS($B$3:B7)))&CHAR(10),\"\")","v":""},null,{"$f":"IFERROR(INDEX(Activiteit,SMALL(IF(Doel=$H$2,ROW(Activiteit)-MIN(ROW(Activiteit))+1),ROWS($B$3:B7)))&CHAR(10),\"\")","v":""}]
[null,{"$f":"IFERROR(INDEX(Activiteit,SMALL(IF(Doel=$B$2,ROW(Activiteit)-MIN(ROW(Activiteit))+1),ROWS($B$3:B8)))&\" \"&CHAR(10)&(INDEX(Resultaat,SMALL(IF(Doel=$B$2,ROW(Resultaat)-MIN(ROW(Resultaat))+1),ROWS($B$3:B8))))&CHAR(10),\"\")","v":""},null,{"$f":"IFERROR(INDEX(Activiteit,SMALL(IF(Doel=$D$2,ROW(Activiteit)-MIN(ROW(Activiteit))+1),ROWS($B$3:B8)))&CHAR(10),\"\")","v":""},null,{"$f":"IFERROR(INDEX(Activiteit,SMALL(IF(Doel=$F$2,ROW(Activiteit)-MIN(ROW(Activiteit))+1),ROWS($B$3:B8)))&CHAR(10),\"\")","v":""},null,{"$f":"IFERROR(INDEX(Activiteit,SMALL(IF(Doel=$H$2,ROW(Activiteit)-MIN(ROW(Activiteit))+1),ROWS($B$3:B8)))&CHAR(10),\"\")","v":""}]
[null,{"$f":"IFERROR(INDEX(Activiteit,SMALL(IF(Doel=$B$2,ROW(Activiteit)-MIN(ROW(Activiteit))+1),ROWS($B$3:B9)))&\" \"&CHAR(10)&(INDEX(Resultaat,SMALL(IF(Doel=$B$2,ROW(Resultaat)-MIN(ROW(Resultaat))+1),ROWS($B$3:B9))))&CHAR(10),\"\")","v":""},null,{"$f":"IFERROR(INDEX(Activiteit,SMALL(IF(Doel=$D$2,ROW(Activiteit)-MIN(ROW(Activiteit))+1),ROWS($B$3:B9)))&CHAR(10),\"\")","v":""},null,{"$f":"IFERROR(INDEX(Activiteit,SMALL(IF(Doel=$F$2,ROW(Activiteit)-MIN(ROW(Activiteit))+1),ROWS($B$3:B9)))&CHAR(10),\"\")","v":""},null,{"$f":"IFERROR(INDEX(Activiteit,SMALL(IF(Doel=$H$2,ROW(Activiteit)-MIN(ROW(Activiteit))+1),ROWS($B$3:B9)))&CHAR(10),\"\")","v":""}]
[null,{"$f":"IFERROR(INDEX(Activiteit,SMALL(IF(Doel=$B$2,ROW(Activiteit)-MIN(ROW(Activiteit))+1),ROWS($B$3:B10)))&\" \"&CHAR(10)&(INDEX(Resultaat,SMALL(IF(Doel=$B$2,ROW(Resultaat)-MIN(ROW(Resultaat))+1),ROWS($B$3:B10))))&CHAR(10),\"\")","v":""},null,{"$f":"IFERROR(INDEX(Activiteit,SMALL(IF(Doel=$D$2,ROW(Activiteit)-MIN(ROW(Activiteit))+1),ROWS($B$3:B10)))&CHAR(10),\"\")","v":""},null,{"$f":"IFERROR(INDEX(Activiteit,SMALL(IF(Doel=$F$2,ROW(Activiteit)-MIN(ROW(Activiteit))+1),ROWS($B$3:B10)))&CHAR(10),\"\")","v":""},null,{"$f":"IFERROR(INDEX(Activiteit,SMALL(IF(Doel=$H$2,ROW(Activiteit)-MIN(ROW(Activiteit))+1),ROWS($B$3:B10)))&CHAR(10),\"\")","v":""}]
[null,{"$f":"IFERROR(INDEX(Activiteit,SMALL(IF(Doel=$B$2,ROW(Activiteit)-MIN(ROW(Activiteit))+1),ROWS($B$3:B11)))&\" \"&CHAR(10)&(INDEX(Resultaat,SMALL(IF(Doel=$B$2,ROW(Resultaat)-MIN(ROW(Resultaat))+1),ROWS($B$3:B11))))&CHAR(10),\"\")","v":""},null,{"$f":"IFERROR(INDEX(Activiteit,SMALL(IF(Doel=$D$2,ROW(Activiteit)-MIN(ROW(Activiteit))+1),ROWS($B$3:B11)))&CHAR(10),\"\")","v":""},null,{"$f":"IFERROR(INDEX(Activiteit,SMALL(IF(Doel=$F$2,ROW(Activiteit)-MIN(ROW(Activiteit))+1),ROWS($B$3:B11)))&CHAR(10),\"\")","v":""},null,{"$f":"IFERROR(INDEX(Activiteit,SMALL(IF(Doel=$H$2,ROW(Activiteit)-MIN(ROW(Activiteit))+1),ROWS($B$3:B11)))&CHAR(10),\"\")","v":""}]
[null,{"$f":"IFERROR(INDEX(Activiteit,SMALL(IF(Doel=$B$2,ROW(Activiteit)-MIN(ROW(Activiteit))+1),ROWS($B$3:B12)))&\" \"&CHAR(10)&(INDEX(Resultaat,SMALL(IF(Doel=$B$2,ROW(Resultaat)-MIN(ROW(Resultaat))+1),ROWS($B$3:B12))))&CHAR(10),\"\")","v":""},null,{"$f":"IFERROR(INDEX(Activiteit,SMALL(IF(Doel=$D$2,ROW(Activiteit)-MIN(ROW(Activiteit))+1),ROWS($B$3:B12)))&CHAR(10),\"\")","v":""},null,{"$f":"IFERROR(INDEX(Activiteit,SMALL(IF(Doel=$F$2,ROW(Activiteit)-MIN(ROW(Activiteit))+1),ROWS($B$3:B12)))&CHAR(10),\"\")","v":""},null,{"$f":"IFERROR(INDEX(Activiteit,SMALL(IF(Doel=$H$2,ROW(Activiteit)-MIN(ROW(Activiteit))+1),ROWS($B$3:B12)))&CHAR(10),\"\")","v":""}]
[null,{"$f":"IFERROR(INDEX(Activiteit,SMALL(IF(Doel=$B$2,ROW(Activiteit)-MIN(ROW(Activiteit))+1),ROWS($B$3:B13)))&\" \"&CHAR(10)&(INDEX(Resultaat,SMALL(IF(Doel=$B$2,ROW(Resultaat)-MIN(ROW(Resultaat))+1),ROWS($B$3:B13))))&CHAR(10),\"\")","v":""},null,{"$f":"IFERROR(INDEX(Activiteit,SMALL(IF(Doel=$D$2,ROW(Activiteit)-MIN(ROW(Activiteit))+1),ROWS($B$3:B13)))&CHAR(10),\"\")","v":""},null,{"$f":"IFERROR(INDEX(Activiteit,SMALL(IF(Doel=$F$2,ROW(Activiteit)-MIN(ROW(Activiteit))+1),ROWS($B$3:B13)))&CHAR(10),\"\")","v":""},null,{"$f":"IFERROR(INDEX(Activiteit,SMALL(IF(Doel=$H$2,ROW(Activiteit)-MIN(ROW(Activiteit))+1),ROWS($B$3:B13)))&CHAR(10),\"\")","v":""}]
[null,{"$f":"IFERROR(INDEX(Activiteit,SMALL(IF(Doel=$B$2,ROW(Activiteit)-MIN(ROW(Activiteit))+1),ROWS($B$3:B14)))&\" \"&CHAR(10)&(INDEX(Resultaat,SMALL(IF(Doel=$B$2,ROW(Resultaat)-MIN(ROW(Resultaat))+1),ROWS($B$3:B14))))&CHAR(10),\"\")","v":""},null,{"$f":"IFERROR(INDEX(Activiteit,SMALL(IF(Doel=$D$2,ROW(Activiteit)-MIN(ROW(Activiteit))+1),ROWS($B$3:B14)))&CHAR(10),\"\")","v":""},null,{"$f":"IFERROR(INDEX(Activiteit,SMALL(IF(Doel=$F$2,ROW(Activiteit)-MIN(ROW(Activiteit))+1),ROWS($B$3:B14)))&CHAR(10),\"\")","v":""},null,{"$f":"IFERROR(INDEX(Activiteit,SMALL(IF(Doel=$H$2,ROW(Activiteit)-MIN(ROW(Activiteit))+1),ROWS($B$3:B14)))&CHAR(10),\"\")","v":""}]
[null,{"$f":"IFERROR(INDEX(Activiteit,SMALL(IF(Doel=$B$2,ROW(Activiteit)-MIN(ROW(Activiteit))+1),ROWS($B$3:B15)))&\" \"&CHAR(10)&(INDEX(Resultaat,SMALL(IF(Doel=$B$2,ROW(Resultaat)-MIN(ROW(Resultaat))+1),ROWS($B$3:B15))))&CHAR(10),\"\")","v":""},null,{"$f":"IFERROR(INDEX(Activiteit,SMALL(IF(Doel=$D$2,ROW(Activiteit)-MIN(ROW(Activiteit))+1),ROWS($B$3:B15)))&CHAR(10),\"\")","v":""},null,{"$f":"IFERROR(INDEX(Activiteit,SMALL(IF(Doel=$F$2,ROW(Activiteit)-MIN(ROW(Activiteit))+1),ROWS($B$3:B15)))&CHAR(10),\"\")","v":""},null,{"$f":"IFERROR(INDEX(Activiteit,SMALL(IF(Doel=$H$2,ROW(Activiteit)-MIN(ROW(Activiteit))+1),ROWS($B$3:B15)))&CHAR(10),\"\")","v":""}]
[null,{"$f":"IFERROR(INDEX(Activiteit,SMALL(IF(Doel=$B$2,ROW(Activiteit)-MIN(ROW(Activiteit))+1),ROWS($B$3:B16)))&\" \"&CHAR(10)&(INDEX(Resultaat,SMALL(IF(Doel=$B$2,ROW(Resultaat)-MIN(ROW(Resultaat))+1),ROWS($B$3:B16))))&CHAR(10),\"\")","v":""},null,{"$f":"IFERROR(INDEX(Activiteit,SMALL(IF(Doel=$D$2,ROW(Activiteit)-MIN(ROW(Activiteit))+1),ROWS($B$3:B16)))&CHAR(10),\"\")","v":""},null,{"$f":"IFERROR(INDEX(Activiteit,SMALL(IF(Doel=$F$2,ROW(Activiteit)-MIN(ROW(Activiteit))+1),ROWS($B$3:B16)))&CHAR(10),\"\")","v":""},null,{"$f":"IFERROR(INDEX(Activiteit,SMALL(IF(Doel=$H$2,ROW(Activiteit)-MIN(ROW(Activiteit))+1),ROWS($B$3:B16)))&CHAR(10),\"\")","v":""}]
[null,{"$f":"IFERROR(INDEX(Activiteit,SMALL(IF(Doel=$B$2,ROW(Activiteit)-MIN(ROW(Activiteit))+1),ROWS($B$3:B17)))&\" \"&CHAR(10)&(INDEX(Resultaat,SMALL(IF(Doel=$B$2,ROW(Resultaat)-MIN(ROW(Resultaat))+1),ROWS($B$3:B17))))&CHAR(10),\"\")","v":""},null,{"$f":"IFERROR(INDEX(Activiteit,SMALL(IF(Doel=$D$2,ROW(Activiteit)-MIN(ROW(Activiteit))+1),ROWS($B$3:B17)))&CHAR(10),\"\")","v":""},null,{"$f":"IFERROR(INDEX(Activiteit,SMALL(IF(Doel=$F$2,ROW(Activiteit)-MIN(ROW(Activiteit))+1),ROWS($B$3:B17)))&CHAR(10),\"\")","v":""},null,{"$f":"IFERROR(INDEX(Activiteit,SMALL(IF(Doel=$H$2,ROW(Activiteit)-MIN(ROW(Activiteit))+1),ROWS($B$3:B17)))&CHAR(10),\"\")","v":""}]
[null,{"$f":"IFERROR(INDEX(Activiteit,SMALL(IF(Doel=$B$2,ROW(Activiteit)-MIN(ROW(Activiteit))+1),ROWS($B$3:B18)))&\" \"&CHAR(10)&(INDEX(Resultaat,SMALL(IF(Doel=$B$2,ROW(Resultaat)-MIN(ROW(Resultaat))+1),ROWS($B$3:B18))))&CHAR(10),\"\")","v":""},null,{"$f":"IFERROR(INDEX(Activiteit,SMALL(IF(Doel=$D$2,ROW(Activiteit)-MIN(ROW(Activiteit))+1),ROWS($B$3:B18)))&CHAR(10),\"\")","v":""},null,{"$f":"IFERROR(INDEX(Activiteit,SMALL(IF(Doel=$F$2,ROW(Activiteit)-MIN(ROW(Activiteit))+1),ROWS($B$3:B18)))&CHAR(10),\"\")","v":""},null,{"$f":"IFERROR(INDEX(Activiteit,SMALL(IF(Doel=$H$2,ROW(Activiteit)-MIN(ROW(Activiteit))+1),ROWS($B$3:B18)))&CHAR(10),\"\")","v":""}]
[null,{"$f":"IFERROR(INDEX(Activiteit,SMALL(IF(Doel=$B$2,ROW(Activiteit)-MIN(ROW(Activiteit))+1),ROWS($B$3:B19)))&\" \"&CHAR(10)&(INDEX(Resultaat,SMALL(IF(Doel=$B$2,ROW(Resultaat)-MIN(ROW(Resultaat))+1),ROWS($B$3:B19))))&CHAR(10),\"\")","v":""},null,{"$f":"IFERROR(INDEX(Activiteit,SMALL(IF(Doel=$D$2,ROW(Activiteit)-MIN(ROW(Activiteit))+1),ROWS($B$3:B19)))&CHAR(10),\"\")","v":""},null,{"$f":"IFERROR(INDEX(Activiteit,SMALL(IF(Doel=$F$2,ROW(Activiteit)-MIN(ROW(Activiteit))+1),ROWS($B$3:B19)))&CHAR(10),\"\")","v":""},null,{"$f":"IFERROR(INDEX(Activiteit,SMALL(IF(Doel=$H$2,ROW(Activiteit)-MIN(ROW(Activiteit))+1),ROWS($B$3:B19)))&CHAR(10),\"\")","v":""}]
[null,{"$f":"IFERROR(INDEX(Activiteit,SMALL(IF(Doel=$B$2,ROW(Activiteit)-MIN(ROW(Activiteit))+1),ROWS($B$3:B20)))&\" \"&CHAR(10)&(INDEX(Resultaat,SMALL(IF(Doel=$B$2,ROW(Resultaat)-MIN(ROW(Resultaat))+1),ROWS($B$3:B20))))&CHAR(10),\"\")","v":""},null,{"$f":"IFERROR(INDEX(Activiteit,SMALL(IF(Doel=$D$2,ROW(Activiteit)-MIN(ROW(Activiteit))+1),ROWS($B$3:B20)))&CHAR(10),\"\")","v":""},null,{"$f":"IFERROR(INDEX(Activiteit,SMALL(IF(Doel=$F$2,ROW(Activiteit)-MIN(ROW(Activiteit))+1),ROWS($B$3:B20)))&CHAR(10),\"\")","v":""},null,{"$f":"IFERROR(INDEX(Activiteit,SMALL(IF(Doel=$H$2,ROW(Activiteit)-MIN(ROW(Activiteit))+1),ROWS($B$3:B20)))&CHAR(10),\"\")","v":""}]
[null,{"$f":"IFERROR(INDEX(Activiteit,SMALL(IF(Doel=$B$2,ROW(Activiteit)-MIN(ROW(Activiteit))+1),ROWS($B$3:B21)))&\" \"&CHAR(10)&(INDEX(Resultaat,SMALL(IF(Doel=$B$2,ROW(Resultaat)-MIN(ROW(Resultaat))+1),ROWS($B$3:B21))))&CHAR(10),\"\")","v":""},null,{"$f":"IFERROR(INDEX(Activiteit,SMALL(IF(Doel=$D$2,ROW(Activiteit)-MIN(ROW(Activiteit))+1),ROWS($B$3:B21)))&CHAR(10),\"\")","v":""},null,{"$f":"IFERROR(INDEX(Activiteit,SMALL(IF(Doel=$F$2,ROW(Activiteit)-MIN(ROW(Activiteit))+1),ROWS($B$3:B21)))&CHAR(10),\"\")","v":""},null,{"$f":"IFERROR(INDEX(Activiteit,SMALL(IF(Doel=$H$2,ROW(Activiteit)-MIN(ROW(Activiteit))+1),ROWS($B$3:B21)))&CHAR(10),\"\")","v":""}]
[null,{"$f":"IFERROR(INDEX(Activiteit,SMALL(IF(Doel=$B$2,ROW(Activiteit)-MIN(ROW(Activiteit))+1),ROWS($B$3:B22)))&\" \"&CHAR(10)&(INDEX(Resultaat,SMALL(IF(Doel=$B$2,ROW(Resultaat)-MIN(ROW(Resultaat))+1),ROWS($B$3:B22))))&CHAR(10),\"\")","v":""},null,{"$f":"IFERROR(INDEX(Activiteit,SMALL(IF(Doel=$D$2,ROW(Activiteit)-MIN(ROW(Activiteit))+1),ROWS($B$3:B22)))&CHAR(10),\"\")","v":""},null,{"$f":"IFERROR(INDEX(Activiteit,SMALL(IF(Doel=$F$2,ROW(Activiteit)-MIN(ROW(Activiteit))+1),ROWS($B$3:B22)))&CHAR(10),\"\")","v":""},null,{"$f":"IFERROR(INDEX(Activiteit,SMALL(IF(Doel=$H$2,ROW(Activiteit)-MIN(ROW(Activiteit))+1),ROWS($B$3:B22)))&CHAR(10),\"\")","v":""}]
[null,{"$f":"IFERROR(INDEX(Activiteit,SMALL(IF(Doel=$B$2,ROW(Activiteit)-MIN(ROW(Activiteit))+1),ROWS($B$3:B23)))&\" \"&CHAR(10)&(INDEX(Resultaat,SMALL(IF(Doel=$B$2,ROW(Resultaat)-MIN(ROW(Resultaat))+1),ROWS($B$3:B23))))&CHAR(10),\"\")","v":""},null,{"$f":"IFERROR(INDEX(Activiteit,SMALL(IF(Doel=$D$2,ROW(Activiteit)-MIN(ROW(Activiteit))+1),ROWS($B$3:B23)))&CHAR(10),\"\")","v":""},null,{"$f":"IFERROR(INDEX(Activiteit,SMALL(IF(Doel=$F$2,ROW(Activiteit)-MIN(ROW(Activiteit))+1),ROWS($B$3:B23)))&CHAR(10),\"\")","v":""},null,{"$f":"IFERROR(INDEX(Activiteit,SMALL(IF(Doel=$H$2,ROW(Activiteit)-MIN(ROW(Activiteit))+1),ROWS($B$3:B23)))&CHAR(10),\"\")","v":""}]
[null,{"$f":"IFERROR(INDEX(Activiteit,SMALL(IF(Doel=$B$2,ROW(Activiteit)-MIN(ROW(Activiteit))+1),ROWS($B$3:B24)))&\" \"&CHAR(10)&(INDEX(Resultaat,SMALL(IF(Doel=$B$2,ROW(Resultaat)-MIN(ROW(Resultaat))+1),ROWS($B$3:B24))))&CHAR(10),\"\")","v":""},null,{"$f":"IFERROR(INDEX(Activiteit,SMALL(IF(Doel=$D$2,ROW(Activiteit)-MIN(ROW(Activiteit))+1),ROWS($B$3:B24)))&CHAR(10),\"\")","v":""},null,{"$f":"IFERROR(INDEX(Activiteit,SMALL(IF(Doel=$F$2,ROW(Activiteit)-MIN(ROW(Activiteit))+1),ROWS($B$3:B24)))&CHAR(10),\"\")","v":""},null,{"$f":"IFERROR(INDEX(Activiteit,SMALL(IF(Doel=$H$2,ROW(Activiteit)-MIN(ROW(Activiteit))+1),ROWS($B$3:B24)))&CHAR(10),\"\")","v":""}]
[null,{"$f":"IFERROR(INDEX(Activiteit,SMALL(IF(Doel=$B$2,ROW(Activiteit)-MIN(ROW(Activiteit))+1),ROWS($B$3:B25)))&\" \"&CHAR(10)&(INDEX(Resultaat,SMALL(IF(Doel=$B$2,ROW(Resultaat)-MIN(ROW(Resultaat))+1),ROWS($B$3:B25))))&CHAR(10),\"\")","v":""},null,{"$f":"IFERROR(INDEX(Activiteit,SMALL(IF(Doel=$D$2,ROW(Activiteit)-MIN(ROW(Activiteit))+1),ROWS($B$3:B25)))&CHAR(10),\"\")","v":""},null,{"$f":"IFERROR(INDEX(Activiteit,SMALL(IF(Doel=$F$2,ROW(Activiteit)-MIN(ROW(Activiteit))+1),ROWS($B$3:B25)))&CHAR(10),\"\")","v":""},null,{"$f":"IFERROR(INDEX(Activiteit,SMALL(IF(Doel=$H$2,ROW(Activiteit)-MIN(ROW(Activiteit))+1),ROWS($B$3:B25)))&CHAR(10),\"\")","v":""}]
[null,{"$f":"IFERROR(INDEX(Activiteit,SMALL(IF(Doel=$B$2,ROW(Activiteit)-MIN(ROW(Activiteit))+1),ROWS($B$3:B26)))&\" \"&CHAR(10)&(INDEX(Resultaat,SMALL(IF(Doel=$B$2,ROW(Resultaat)-MIN(ROW(Resultaat))+1),ROWS($B$3:B26))))&CHAR(10),\"\")","v":""},null,{"$f":"IFERROR(INDEX(Activiteit,SMALL(IF(Doel=$D$2,ROW(Activiteit)-MIN(ROW(Activiteit))+1),ROWS($B$3:B26)))&CHAR(10),\"\")","v":""},null,{"$f":"IFERROR(INDEX(Activiteit,SMALL(IF(Doel=$F$2,ROW(Activiteit)-MIN(ROW(Activiteit))+1),ROWS($B$3:B26)))&CHAR(10),\"\")","v":""},null,{"$f":"IFERROR(INDEX(Activiteit,SMALL(IF(Doel=$H$2,ROW(Activiteit)-MIN(ROW(Activiteit))+1),ROWS($B$3:B26)))&CHAR(10),\"\")","v":""}]
[null,{"$f":"IFERROR(INDEX(Activiteit,SMALL(IF(Doel=$B$2,ROW(Activiteit)-MIN(ROW(Activiteit))+1),ROWS($B$3:B27)))&\" \"&CHAR(10)&(INDEX(Resultaat,SMALL(IF(Doel=$B$2,ROW(Resultaat)-MIN(ROW(Resultaat))+1),ROWS($B$3:B27))))&CHAR(10),\"\")","v":""},null,{"$f":"IFERROR(INDEX(Activiteit,SMALL(IF(Doel=$D$2,ROW(Activiteit)-MIN(ROW(Activiteit))+1),ROWS($B$3:B27)))&CHAR(10),\"\")","v":""},null,{"$f":"IFERROR(INDEX(Activiteit,SMALL(IF(Doel=$F$2,ROW(Activiteit)-MIN(ROW(Activiteit))+1),ROWS($B$3:B27)))&CHAR(10),\"\")","v":""},null,{"$f":"IFERROR(INDEX(Activiteit,SMALL(IF(Doel=$H$2,ROW(Activiteit)-MIN(ROW(Activiteit))+1),ROWS($B$3:B27)))&CHAR(10),\"\")","v":""}]
[null,{"$f":"IFERROR(INDEX(Activiteit,SMALL(IF(Doel=$B$2,ROW(Activiteit)-MIN(ROW(Activiteit))+1),ROWS($B$3:B28)))&\" \"&CHAR(10)&(INDEX(Resultaat,SMALL(IF(Doel=$B$2,ROW(Resultaat)-MIN(ROW(Resultaat))+1),ROWS($B$3:B28))))&CHAR(10),\"\")","v":""},null,{"$f":"IFERROR(INDEX(Activiteit,SMALL(IF(Doel=$D$2,ROW(Activiteit)-MIN(ROW(Activiteit))+1),ROWS($B$3:B28)))&CHAR(10),\"\")","v":""},null,{"$f":"IFERROR(INDEX(Activiteit,SMALL(IF(Doel=$F$2,ROW(Activiteit)-MIN(ROW(Activiteit))+1),ROWS($B$3:B28)))&CHAR(10),\"\")","v":""},null,{"$f":"IFERROR(INDEX(Activiteit,SMALL(IF(Doel=$H$2,ROW(Activiteit)-MIN(ROW(Activiteit))+1),ROWS($B$3:B28)))&CHAR(10),\"\")","v":""}]
[null,{"$f":"IFERROR(INDEX(Activiteit,SMALL(IF(Doel=$B$2,ROW(Activiteit)-MIN(ROW(Activiteit))+1),ROWS($B$3:B29)))&\" \"&CHAR(10)&(INDEX(Resultaat,SMALL(IF(Doel=$B$2,ROW(Resultaat)-MIN(ROW(Resultaat))+1),ROWS($B$3:B29))))&CHAR(10),\"\")","v":""},null,{"$f":"IFERROR(INDEX(Activiteit,SMALL(IF(Doel=$D$2,ROW(Activiteit)-MIN(ROW(Activiteit))+1),ROWS($B$3:B29)))&CHAR(10),\"\")","v":""},null,{"$f":"IFERROR(INDEX(Activiteit,SMALL(IF(Doel=$F$2,ROW(Activiteit)-MIN(ROW(Activiteit))+1),ROWS($B$3:B29)))&CHAR(10),\"\")","v":""},null,{"$f":"IFERROR(INDEX(Activiteit,SMALL(IF(Doel=$H$2,ROW(Activiteit)-MIN(ROW(Activiteit))+1),ROWS($B$3:B29)))&CHAR(10),\"\")","v":""}]
[null,{"$f":"IFERROR(INDEX(Activiteit,SMALL(IF(Doel=$B$2,ROW(Activiteit)-MIN(ROW(Activiteit))+1),ROWS($B$3:B30)))&\" \"&CHAR(10)&(INDEX(Resultaat,SMALL(IF(Doel=$B$2,ROW(Resultaat)-MIN(ROW(Resultaat))+1),ROWS($B$3:B30))))&CHAR(10),\"\")","v":""},null,{"$f":"IFERROR(INDEX(Activiteit,SMALL(IF(Doel=$D$2,ROW(Activiteit)-MIN(ROW(Activiteit))+1),ROWS($B$3:B30)))&CHAR(10),\"\")","v":""},null,{"$f":"IFERROR(INDEX(Activiteit,SMALL(IF(Doel=$F$2,ROW(Activiteit)-MIN(ROW(Activiteit))+1),ROWS($B$3:B30)))&CHAR(10),\"\")","v":""},null,{"$f":"IFERROR(INDEX(Activiteit,SMALL(IF(Doel=$H$2,ROW(Activiteit)-MIN(ROW(Activiteit))+1),ROWS($B$3:B30)))&CHAR(10),\"\")","v":""}]
[null,{"$f":"IFERROR(INDEX(Activiteit,SMALL(IF(Doel=$B$2,ROW(Activiteit)-MIN(ROW(Activiteit))+1),ROWS($B$3:B31)))&\" \"&CHAR(10)&(INDEX(Resultaat,SMALL(IF(Doel=$B$2,ROW(Resultaat)-MIN(ROW(Resultaat))+1),ROWS($B$3:B31))))&CHAR(10),\"\")","v":""},null,{"$f":"IFERROR(INDEX(Activiteit,SMALL(IF(Doel=$D$2,ROW(Activiteit)-MIN(ROW(Activiteit))+1),ROWS($B$3:B31)))&CHAR(10),\"\")","v":""},null,{"$f":"IFERROR(INDEX(Activiteit,SMALL(IF(Doel=$F$2,ROW(Activiteit)-MIN(ROW(Activiteit))+1),ROWS($B$3:B31)))&CHAR(10),\"\")","v":""},null,{"$f":"IFERROR(INDEX(Activiteit,SMALL(IF(Doel=$H$2,ROW(Activiteit)-MIN(ROW(Activiteit))+1),ROWS($B$3:B31)))&CHAR(10),\"\")","v":""}]
[null,{"$f":"IFERROR(INDEX(Activiteit,SMALL(IF(Doel=$B$2,ROW(Activiteit)-MIN(ROW(Activiteit))+1),ROWS($B$3:B32)))&\" \"&CHAR(10)&(INDEX(Resultaat,SMALL(IF(Doel=$B$2,ROW(Resultaat)-MIN(ROW(Resultaat))+1),ROWS($B$3:B32))))&CHAR(10),\"\")","v":""},null,{"$f":"IFERROR(INDEX(Activiteit,SMALL(IF(Doel=$D$2,ROW(Activiteit)-MIN(ROW(Activiteit))+1),ROWS($B$3:B32)))&CHAR(10),\"\")","v":""},null,{"$f":"IFERROR(INDEX(Activiteit,SMALL(IF(Doel=$F$2,ROW(Activiteit)-MIN(ROW(Activiteit))+1),ROWS($B$3:B32)))&CHAR(10),\"\")","v":""},null,{"$f":"IFERROR(INDEX(Activiteit,SMALL(IF(Doel=$H$2,ROW(Activiteit)-MIN(ROW(Activiteit))+1),ROWS($B$3:B32)))&CHAR(10),\"\")","v":""}]
[null,{"$f":"IFERROR(INDEX(Activiteit,SMALL(IF(Doel=$B$2,ROW(Activiteit)-MIN(ROW(Activiteit))+1),ROWS($B$3:B33)))&\" \"&CHAR(10)&(INDEX(Resultaat,SMALL(IF(Doel=$B$2,ROW(Resultaat)-MIN(ROW(Resultaat))+1),ROWS($B$3:B33))))&CHAR(10),\"\")","v":""},null,{"$f":"IFERROR(INDEX(Activiteit,SMALL(IF(Doel=$D$2,ROW(Activiteit)-MIN(ROW(Activiteit))+1),ROWS($B$3:B33)))&CHAR(10),\"\")","v":""},null,{"$f":"IFERROR(INDEX(Activiteit,SMALL(IF(Doel=$F$2,ROW(Activiteit)-MIN(ROW(Activiteit))+1),ROWS($B$3:B33)))&CHAR(10),\"\")","v":""},null,{"$f":"IFERROR(INDEX(Activiteit,SMALL(IF(Doel=$H$2,ROW(Activiteit)-MIN(ROW(Activiteit))+1),ROWS($B$3:B33)))&CHAR(10),\"\")","v":""}]
[null,{"$f":"IFERROR(INDEX(Activiteit,SMALL(IF(Doel=$B$2,ROW(Activiteit)-MIN(ROW(Activiteit))+1),ROWS($B$3:B34)))&\" \"&CHAR(10)&(INDEX(Resultaat,SMALL(IF(Doel=$B$2,ROW(Resultaat)-MIN(ROW(Resultaat))+1),ROWS($B$3:B34))))&CHAR(10),\"\")","v":""},null,{"$f":"IFERROR(INDEX(Activiteit,SMALL(IF(Doel=$D$2,ROW(Activiteit)-MIN(ROW(Activiteit))+1),ROWS($B$3:B34)))&CHAR(10),\"\")","v":""},null,{"$f":"IFERROR(INDEX(Activiteit,SMALL(IF(Doel=$F$2,ROW(Activiteit)-MIN(ROW(Activiteit))+1),ROWS($B$3:B34)))&CHAR(10),\"\")","v":""},null,{"$f":"IFERROR(INDEX(Activiteit,SMALL(IF(Doel=$H$2,ROW(Activiteit)-MIN(ROW(Activiteit))+1),ROWS($B$3:B34)))&CHAR(10),\"\")","v":""}]
[null,{"$f":"IFERROR(INDEX(Activiteit,SMALL(IF(Doel=$B$2,ROW(Activiteit)-MIN(ROW(Activiteit))+1),ROWS($B$3:B35)))&\" \"&CHAR(10)&(INDEX(Resultaat,SMALL(IF(Doel=$B$2,ROW(Resultaat)-MIN(ROW(Resultaat))+1),ROWS($B$3:B35))))&CHAR(10),\"\")","v":""},null,{"$f":"IFERROR(INDEX(Activiteit,SMALL(IF(Doel=$D$2,ROW(Activiteit)-MIN(ROW(Activiteit))+1),ROWS($B$3:B35)))&CHAR(10),\"\")","v":""},null,{"$f":"IFERROR(INDEX(Activiteit,SMALL(IF(Doel=$F$2,ROW(Activiteit)-MIN(ROW(Activiteit))+1),ROWS($B$3:B35)))&CHAR(10),\"\")","v":""},null,{"$f":"IFERROR(INDEX(Activiteit,SMALL(IF(Doel=$H$2,ROW(Activiteit)-MIN(ROW(Activiteit))+1),ROWS($B$3:B35)))&CHAR(10),\"\")","v":""}]
[null,{"$f":"IFERROR(INDEX(Activiteit,SMALL(IF(Doel=$B$2,ROW(Activiteit)-MIN(ROW(Activiteit))+1),ROWS($B$3:B36)))&\" \"&CHAR(10)&(INDEX(Resultaat,SMALL(IF(Doel=$B$2,ROW(Resultaat)-MIN(ROW(Resultaat))+1),ROWS($B$3:B36))))&CHAR(10),\"\")","v":""},null,{"$f":"IFERROR(INDEX(Activiteit,SMALL(IF(Doel=$D$2,ROW(Activiteit)-MIN(ROW(Activiteit))+1),ROWS($B$3:B36)))&CHAR(10),\"\")","v":""},null,{"$f":"IFERROR(INDEX(Activiteit,SMALL(IF(Doel=$F$2,ROW(Activiteit)-MIN(ROW(Activiteit))+1),ROWS($B$3:B36)))&CHAR(10),\"\")","v":""},null,{"$f":"IFERROR(INDEX(Activiteit,SMALL(IF(Doel=$H$2,ROW(Activiteit)-MIN(ROW(Activiteit))+1),ROWS($B$3:B36)))&CHAR(10),\"\")","v":""}]
[null,{"$f":"IFERROR(INDEX(Activiteit,SMALL(IF(Doel=$B$2,ROW(Activiteit)-MIN(ROW(Activiteit))+1),ROWS($B$3:B37)))&\" \"&CHAR(10)&(INDEX(Resultaat,SMALL(IF(Doel=$B$2,ROW(Resultaat)-MIN(ROW(Resultaat))+1),ROWS($B$3:B37))))&CHAR(10),\"\")","v":""},null,{"$f":"IFERROR(INDEX(Activiteit,SMALL(IF(Doel=$D$2,ROW(Activiteit)-MIN(ROW(Activiteit))+1),ROWS($B$3:B37)))&CHAR(10),\"\")","v":""},null,{"$f":"IFERROR(INDEX(Activiteit,SMALL(IF(Doel=$F$2,ROW(Activiteit)-MIN(ROW(Activiteit))+1),ROWS($B$3:B37)))&CHAR(10),\"\")","v":""},null,{"$f":"IFERROR(INDEX(Activiteit,SMALL(IF(Doel=$H$2,ROW(Activiteit)-MIN(ROW(Activiteit))+1),ROWS($B$3:B37)))&CHAR(10),\"\")","v":""}]
[null,{"$f":"IFERROR(INDEX(Activiteit,SMALL(IF(Doel=$B$2,ROW(Activiteit)-MIN(ROW(Activiteit))+1),ROWS($B$3:B38)))&\" \"&CHAR(10)&(INDEX(Resultaat,SMALL(IF(Doel=$B$2,ROW(Resultaat)-MIN(ROW(Resultaat))+1),ROWS($B$3:B38))))&CHAR(10),\"\")","v":""},null,{"$f":"IFERROR(INDEX(Activiteit,SMALL(IF(Doel=$D$2,ROW(Activiteit)-MIN(ROW(Activiteit))+1),ROWS($B$3:B38)))&CHAR(10),\"\")","v":""},null,{"$f":"IFERROR(INDEX(Activiteit,SMALL(IF(Doel=$F$2,ROW(Activiteit)-MIN(ROW(Activiteit))+1),ROWS($B$3:B38)))&CHAR(10),\"\")","v":""},null,{"$f":"IFERROR(INDEX(Activiteit,SMALL(IF(Doel=$H$2,ROW(Activiteit)-MIN(ROW(Activiteit))+1),ROWS($B$3:B38)))&CHAR(10),\"\")","v":""}]
[null,{"$f":"IFERROR(INDEX(Activiteit,SMALL(IF(Doel=$B$2,ROW(Activiteit)-MIN(ROW(Activiteit))+1),ROWS($B$3:B39)))&\" \"&CHAR(10)&(INDEX(Resultaat,SMALL(IF(Doel=$B$2,ROW(Resultaat)-MIN(ROW(Resultaat))+1),ROWS($B$3:B39))))&CHAR(10),\"\")","v":""},null,{"$f":"IFERROR(INDEX(Activiteit,SMALL(IF(Doel=$D$2,ROW(Activiteit)-MIN(ROW(Activiteit))+1),ROWS($B$3:B39)))&CHAR(10),\"\")","v":""},null,{"$f":"IFERROR(INDEX(Activiteit,SMALL(IF(Doel=$F$2,ROW(Activiteit)-MIN(ROW(Activiteit))+1),ROWS($B$3:B39)))&CHAR(10),\"\")","v":""},null,{"$f":"IFERROR(INDEX(Activiteit,SMALL(IF(Doel=$H$2,ROW(Activiteit)-MIN(ROW(Activiteit))+1),ROWS($B$3:B39)))&CHAR(10),\"\")","v":""}]
[null,{"$f":"IFERROR(INDEX(Activiteit,SMALL(IF(Doel=$B$2,ROW(Activiteit)-MIN(ROW(Activiteit))+1),ROWS($B$3:B40)))&\" \"&CHAR(10)&(INDEX(Resultaat,SMALL(IF(Doel=$B$2,ROW(Resultaat)-MIN(ROW(Resultaat))+1),ROWS($B$3:B40))))&CHAR(10),\"\")","v":""},null,{"$f":"IFERROR(INDEX(Activiteit,SMALL(IF(Doel=$D$2,ROW(Activiteit)-MIN(ROW(Activiteit))+1),ROWS($B$3:B40)))&CHAR(10),\"\")","v":""},null,{"$f":"IFERROR(INDEX(Activiteit,SMALL(IF(Doel=$F$2,ROW(Activiteit)-MIN(ROW(Activiteit))+1),ROWS($B$3:B40)))&CHAR(10),\"\")","v":""},null,{"$f":"IFERROR(INDEX(Activiteit,SMALL(IF(Doel=$H$2,ROW(Activiteit)-MIN(ROW(Activiteit))+1),ROWS($B$3:B40)))&CHAR(10),\"\")","v":""}]
[null,{"$f":"IFERROR(INDEX(Activiteit,SMALL(IF(Doel=$B$2,ROW(Activiteit)-MIN(ROW(Activiteit))+1),ROWS($B$3:B41)))&\" \"&CHAR(10)&(INDEX(Resultaat,SMALL(IF(Doel=$B$2,ROW(Resultaat)-MIN(ROW(Resultaat))+1),ROWS($B$3:B41))))&CHAR(10),\"\")","v":""},null,{"$f":"IFERROR(INDEX(Activiteit,SMALL(IF(Doel=$D$2,ROW(Activiteit)-MIN(ROW(Activiteit))+1),ROWS($B$3:B41)))&CHAR(10),\"\")","v":""},null,{"$f":"IFERROR(INDEX(Activiteit,SMALL(IF(Doel=$F$2,ROW(Activiteit)-MIN(ROW(Activiteit))+1),ROWS($B$3:B41)))&CHAR(10),\"\")","v":""},null,{"$f":"IFERROR(INDEX(Activiteit,SMALL(IF(Doel=$H$2,ROW(Activiteit)-MIN(ROW(Activiteit))+1),ROWS($B$3:B41)))&CHAR(10),\"\")","v":""}]
[null,{"$f":"IFERROR(INDEX(Activiteit,SMALL(IF(Doel=$B$2,ROW(Activiteit)-MIN(ROW(Activiteit))+1),ROWS($B$3:B42)))&\" \"&CHAR(10)&(INDEX(Resultaat,SMALL(IF(Doel=$B$2,ROW(Resultaat)-MIN(ROW(Resultaat))+1),ROWS($B$3:B42))))&CHAR(10),\"\")","v":""},null,{"$f":"IFERROR(INDEX(Activiteit,SMALL(IF(Doel=$D$2,ROW(Activiteit)-MIN(ROW(Activiteit))+1),ROWS($B$3:B42)))&CHAR(10),\"\")","v":""},null,{"$f":"IFERROR(INDEX(Activiteit,SMALL(IF(Doel=$F$2,ROW(Activiteit)-MIN(ROW(Activiteit))+1),ROWS($B$3:B42)))&CHAR(10),\"\")","v":""},null,{"$f":"IFERROR(INDEX(Activiteit,SMALL(IF(Doel=$H$2,ROW(Activiteit)-MIN(ROW(Activiteit))+1),ROWS($B$3:B42)))&CHAR(10),\"\")","v":""}]
[null,{"$f":"IFERROR(INDEX(Activiteit,SMALL(IF(Doel=$B$2,ROW(Activiteit)-MIN(ROW(Activiteit))+1),ROWS($B$3:B43)))&\" \"&CHAR(10)&(INDEX(Resultaat,SMALL(IF(Doel=$B$2,ROW(Resultaat)-MIN(ROW(Resultaat))+1),ROWS($B$3:B43))))&CHAR(10),\"\")","v":""},null,{"$f":"IFERROR(INDEX(Activiteit,SMALL(IF(Doel=$D$2,ROW(Activiteit)-MIN(ROW(Activiteit))+1),ROWS($B$3:B43)))&CHAR(10),\"\")","v":""},null,{"$f":"IFERROR(INDEX(Activiteit,SMALL(IF(Doel=$F$2,ROW(Activiteit)-MIN(ROW(Activiteit))+1),ROWS($B$3:B43)))&CHAR(10),\"\")","v":""},null,{"$f":"IFERROR(INDEX(Activiteit,SMALL(IF(Doel=$H$2,ROW(Activiteit)-MIN(ROW(Activiteit))+1),ROWS($B$3:B43)))&CHAR(10),\"\")","v":""}]
[null,{"$f":"IFERROR(INDEX(Activiteit,SMALL(IF(Doel=$B$2,ROW(Activiteit)-MIN(ROW(Activiteit))+1),ROWS($B$3:B44)))&\" \"&CHAR(10)&(INDEX(Resultaat,SMALL(IF(Doel=$B$2,ROW(Resultaat)-MIN(ROW(Resultaat))+1),ROWS($B$3:B44))))&CHAR(10),\"\")","v":""},null,{"$f":"IFERROR(INDEX(Activiteit,SMALL(IF(Doel=$D$2,ROW(Activiteit)-MIN(ROW(Activiteit))+1),ROWS($B$3:B44)))&CHAR(10),\"\")","v":""},null,{"$f":"IFERROR(INDEX(Activiteit,SMALL(IF(Doel=$F$2,ROW(Activiteit)-MIN(ROW(Activiteit))+1),ROWS($B$3:B44)))&CHAR(10),\"\")","v":""},null,{"$f":"IFERROR(INDEX(Activiteit,SMALL(IF(Doel=$H$2,ROW(Activiteit)-MIN(ROW(Activiteit))+1),ROWS($B$3:B44)))&CHAR(10),\"\")","v":""}]
[null,{"$f":"IFERROR(INDEX(Activiteit,SMALL(IF(Doel=$B$2,ROW(Activiteit)-MIN(ROW(Activiteit))+1),ROWS($B$3:B45)))&\" \"&CHAR(10)&(INDEX(Resultaat,SMALL(IF(Doel=$B$2,ROW(Resultaat)-MIN(ROW(Resultaat))+1),ROWS($B$3:B45))))&CHAR(10),\"\")","v":""},null,{"$f":"IFERROR(INDEX(Activiteit,SMALL(IF(Doel=$D$2,ROW(Activiteit)-MIN(ROW(Activiteit))+1),ROWS($B$3:B45)))&CHAR(10),\"\")","v":""},null,{"$f":"IFERROR(INDEX(Activiteit,SMALL(IF(Doel=$F$2,ROW(Activiteit)-MIN(ROW(Activiteit))+1),ROWS($B$3:B45)))&CHAR(10),\"\")","v":""},null,{"$f":"IFERROR(INDEX(Activiteit,SMALL(IF(Doel=$H$2,ROW(Activiteit)-MIN(ROW(Activiteit))+1),ROWS($B$3:B45)))&CHAR(10),\"\")","v":""}]
[null,{"$f":"IFERROR(INDEX(Activiteit,SMALL(IF(Doel=$B$2,ROW(Activiteit)-MIN(ROW(Activiteit))+1),ROWS($B$3:B46)))&\" \"&CHAR(10)&(INDEX(Resultaat,SMALL(IF(Doel=$B$2,ROW(Resultaat)-MIN(ROW(Resultaat))+1),ROWS($B$3:B46))))&CHAR(10),\"\")","v":""},null,{"$f":"IFERROR(INDEX(Activiteit,SMALL(IF(Doel=$D$2,ROW(Activiteit)-MIN(ROW(Activiteit))+1),ROWS($B$3:B46)))&CHAR(10),\"\")","v":""},null,{"$f":"IFERROR(INDEX(Activiteit,SMALL(IF(Doel=$F$2,ROW(Activiteit)-MIN(ROW(Activiteit))+1),ROWS($B$3:B46)))&CHAR(10),\"\")","v":""},null,{"$f":"IFERROR(INDEX(Activiteit,SMALL(IF(Doel=$H$2,ROW(Activiteit)-MIN(ROW(Activiteit))+1),ROWS($B$3:B46)))&CHAR(10),\"\")","v":""}]
[null,{"$f":"IFERROR(INDEX(Activiteit,SMALL(IF(Doel=$B$2,ROW(Activiteit)-MIN(ROW(Activiteit))+1),ROWS($B$3:B47)))&\" \"&CHAR(10)&(INDEX(Resultaat,SMALL(IF(Doel=$B$2,ROW(Resultaat)-MIN(ROW(Resultaat))+1),ROWS($B$3:B47))))&CHAR(10),\"\")","v":""},null,{"$f":"IFERROR(INDEX(Activiteit,SMALL(IF(Doel=$D$2,ROW(Activiteit)-MIN(ROW(Activiteit))+1),ROWS($B$3:B47)))&CHAR(10),\"\")","v":""},null,{"$f":"IFERROR(INDEX(Activiteit,SMALL(IF(Doel=$F$2,ROW(Activiteit)-MIN(ROW(Activiteit))+1),ROWS($B$3:B47)))&CHAR(10),\"\")","v":""},null,{"$f":"IFERROR(INDEX(Activiteit,SMALL(IF(Doel=$H$2,ROW(Activiteit)-MIN(ROW(Activiteit))+1),ROWS($B$3:B47)))&CHAR(10),\"\")","v":""}]
[null,{"$f":"IFERROR(INDEX(Activiteit,SMALL(IF(Doel=$B$2,ROW(Activiteit)-MIN(ROW(Activiteit))+1),ROWS($B$3:B48)))&\" \"&CHAR(10)&(INDEX(Resultaat,SMALL(IF(Doel=$B$2,ROW(Resultaat)-MIN(ROW(Resultaat))+1),ROWS($B$3:B48))))&CHAR(10),\"\")","v":""},null,{"$f":"IFERROR(INDEX(Activiteit,SMALL(IF(Doel=$D$2,ROW(Activiteit)-MIN(ROW(Activiteit))+1),ROWS($B$3:B48)))&CHAR(10),\"\")","v":""},null,{"$f":"IFERROR(INDEX(Activiteit,SMALL(IF(Doel=$F$2,ROW(Activiteit)-MIN(ROW(Activiteit))+1),ROWS($B$3:B48)))&CHAR(10),\"\")","v":""},null,{"$f":"IFERROR(INDEX(Activiteit,SMALL(IF(Doel=$H$2,ROW(Activiteit)-MIN(ROW(Activiteit))+1),ROWS($B$3:B48)))&CHAR(10),\"\")","v":""}]
[null,{"$f":"IFERROR(INDEX(Activiteit,SMALL(IF(Doel=$B$2,ROW(Activiteit)-MIN(ROW(Activiteit))+1),ROWS($B$3:B49)))&\" \"&CHAR(10)&(INDEX(Resultaat,SMALL(IF(Doel=$B$2,ROW(Resultaat)-MIN(ROW(Resultaat))+1),ROWS($B$3:B49))))&CHAR(10),\"\")","v":""},null,{"$f":"IFERROR(INDEX(Activiteit,SMALL(IF(Doel=$D$2,ROW(Activiteit)-MIN(ROW(Activiteit))+1),ROWS($B$3:B49)))&CHAR(10),\"\")","v":""},null,{"$f":"IFERROR(INDEX(Activiteit,SMALL(IF(Doel=$F$2,ROW(Activiteit)-MIN(ROW(Activiteit))+1),ROWS($B$3:B49)))&CHAR(10),\"\")","v":""},null,{"$f":"IFERROR(INDEX(Activiteit,SMALL(IF(Doel=$H$2,ROW(Activiteit)-MIN(ROW(Activiteit))+1),ROWS($B$3:B49)))&CHAR(10),\"\")","v":""}]
[null,{"$f":"IFERROR(INDEX(Activiteit,SMALL(IF(Doel=$B$2,ROW(Activiteit)-MIN(ROW(Activiteit))+1),ROWS($B$3:B50)))&\" \"&CHAR(10)&(INDEX(Resultaat,SMALL(IF(Doel=$B$2,ROW(Resultaat)-MIN(ROW(Resultaat))+1),ROWS($B$3:B50))))&CHAR(10),\"\")","v":""},null,{"$f":"IFERROR(INDEX(Activiteit,SMALL(IF(Doel=$D$2,ROW(Activiteit)-MIN(ROW(Activiteit))+1),ROWS($B$3:B50)))&CHAR(10),\"\")","v":""},null,{"$f":"IFERROR(INDEX(Activiteit,SMALL(IF(Doel=$F$2,ROW(Activiteit)-MIN(ROW(Activiteit))+1),ROWS($B$3:B50)))&CHAR(10),\"\")","v":""},null,{"$f":"IFERROR(INDEX(Activiteit,SMALL(IF(Doel=$H$2,ROW(Activiteit)-MIN(ROW(Activiteit))+1),ROWS($B$3:B50)))&CHAR(10),\"\")","v":""}]
[null,{"$f":"IFERROR(INDEX(Activiteit,SMALL(IF(Doel=$B$2,ROW(Activiteit)-MIN(ROW(Activiteit))+1),ROWS($B$3:B51)))&\" \"&CHAR(10)&(INDEX(Resultaat,SMALL(IF(Doel=$B$2,ROW(Resultaat)-MIN(ROW(Resultaat))+1),ROWS($B$3:B51))))&CHAR(10),\"\")","v":""},null,{"$f":"IFERROR(INDEX(Activiteit,SMALL(IF(Doel=$D$2,ROW(Activiteit)-MIN(ROW(Activiteit))+1),ROWS($B$3:B51)))&CHAR(10),\"\")","v":""},null,{"$f":"IFERROR(INDEX(Activiteit,SMALL(IF(Doel=$F$2,ROW(Activiteit)-MIN(ROW(Activiteit))+1),ROWS($B$3:B51)))&CHAR(10),\"\")","v":""},null,{"$f":"IFERROR(INDEX(Activiteit,SMALL(IF(Doel=$H$2,ROW(Activiteit)-MIN(ROW(Activiteit))+1),ROWS($B$3:B51)))&CHAR(10),\"\")","v":""}]
[null,{"$f":"IFERROR(INDEX(Activiteit,SMALL(IF(Doel=$B$2,ROW(Activiteit)-MIN(ROW(Activiteit))+1),ROWS($B$3:B52)))&\" \"&CHAR(10)&(INDEX(Resultaat,SMALL(IF(Doel=$B$2,ROW(Resultaat)-MIN(ROW(Resultaat))+1),ROWS($B$3:B52))))&CHAR(10),\"\")","v":""},null,{"$f":"IFERROR(INDEX(Activiteit,SMALL(IF(Doel=$D$2,ROW(Activiteit)-MIN(ROW(Activiteit))+1),ROWS($B$3:B52)))&CHAR(10),\"\")","v":""},null,{"$f":"IFERROR(INDEX(Activiteit,SMALL(IF(Doel=$F$2,ROW(Activiteit)-MIN(ROW(Activiteit))+1),ROWS($B$3:B52)))&CHAR(10),\"\")","v":""},null,{"$f":"IFERROR(INDEX(Activiteit,SMALL(IF(Doel=$H$2,ROW(Activiteit)-MIN(ROW(Activiteit))+1),ROWS($B$3:B52)))&CHAR(10),\"\")","v":""}]
[null,{"$f":"IFERROR(INDEX(Activiteit,SMALL(IF(Doel=$B$2,ROW(Activiteit)-MIN(ROW(Activiteit))+1),ROWS($B$3:B53)))&\" \"&CHAR(10)&(INDEX(Resultaat,SMALL(IF(Doel=$B$2,ROW(Resultaat)-MIN(ROW(Resultaat))+1),ROWS($B$3:B53))))&CHAR(10),\"\")","v":""},null,{"$f":"IFERROR(INDEX(Activiteit,SMALL(IF(Doel=$D$2,ROW(Activiteit)-MIN(ROW(Activiteit))+1),ROWS($B$3:B53)))&CHAR(10),\"\")","v":""},null,{"$f":"IFERROR(INDEX(Activiteit,SMALL(IF(Doel=$F$2,ROW(Activiteit)-MIN(ROW(Activiteit))+1),ROWS($B$3:B53)))&CHAR(10),\"\")","v":""},null,{"$f":"IFERROR(INDEX(Activiteit,SMALL(IF(Doel=$H$2,ROW(Activiteit)-MIN(ROW(Activiteit))+1),ROWS($B$3:B53)))&CHAR(10),\"\")","v":""}]
[null,{"$f":"IFERROR(INDEX(Activiteit,SMALL(IF(Doel=$B$2,ROW(Activiteit)-MIN(ROW(Activiteit))+1),ROWS($B$3:B54)))&\" \"&CHAR(10)&(INDEX(Resultaat,SMALL(IF(Doel=$B$2,ROW(Resultaat)-MIN(ROW(Resultaat))+1),ROWS($B$3:B54))))&CHAR(10),\"\")","v":""},null,{"$f":"IFERROR(INDEX(Activiteit,SMALL(IF(Doel=$D$2,ROW(Activiteit)-MIN(ROW(Activiteit))+1),ROWS($B$3:B54)))&CHAR(10),\"\")","v":""},null,{"$f":"IFERROR(INDEX(Activiteit,SMALL(IF(Doel=$F$2,ROW(Activiteit)-MIN(ROW(Activiteit))+1),ROWS($B$3:B54)))&CHAR(10),\"\")","v":""},null,{"$f":"IFERROR(INDEX(Activiteit,SMALL(IF(Doel=$H$2,ROW(Activiteit)-MIN(ROW(Activiteit))+1),ROWS($B$3:B54)))&CHAR(10),\"\")","v":""}]
[null,{"$f":"IFERROR(INDEX(Activiteit,SMALL(IF(Doel=$B$2,ROW(Activiteit)-MIN(ROW(Activiteit))+1),ROWS($B$3:B55)))&\" \"&CHAR(10)&(INDEX(Resultaat,SMALL(IF(Doel=$B$2,ROW(Resultaat)-MIN(ROW(Resultaat))+1),ROWS($B$3:B55))))&CHAR(10),\"\")","v":""},null,{"$f":"IFERROR(INDEX(Activiteit,SMALL(IF(Doel=$D$2,ROW(Activiteit)-MIN(ROW(Activiteit))+1),ROWS($B$3:B55)))&CHAR(10),\"\")","v":""},null,{"$f":"IFERROR(INDEX(Activiteit,SMALL(IF(Doel=$F$2,ROW(Activiteit)-MIN(ROW(Activiteit))+1),ROWS($B$3:B55)))&CHAR(10),\"\")","v":""},null,{"$f":"IFERROR(INDEX(Activiteit,SMALL(IF(Doel=$H$2,ROW(Activiteit)-MIN(ROW(Activiteit))+1),ROWS($B$3:B55)))&CHAR(10),\"\")","v":""}]
[null,{"$f":"IFERROR(INDEX(Activiteit,SMALL(IF(Doel=$B$2,ROW(Activiteit)-MIN(ROW(Activiteit))+1),ROWS($B$3:B56)))&\" \"&CHAR(10)&(INDEX(Resultaat,SMALL(IF(Doel=$B$2,ROW(Resultaat)-MIN(ROW(Resultaat))+1),ROWS($B$3:B56))))&CHAR(10),\"\")","v":""},null,{"$f":"IFERROR(INDEX(Activiteit,SMALL(IF(Doel=$D$2,ROW(Activiteit)-MIN(ROW(Activiteit))+1),ROWS($B$3:B56)))&CHAR(10),\"\")","v":""},null,{"$f":"IFERROR(INDEX(Activiteit,SMALL(IF(Doel=$F$2,ROW(Activiteit)-MIN(ROW(Activiteit))+1),ROWS($B$3:B56)))&CHAR(10),\"\")","v":""},null,{"$f":"IFERROR(INDEX(Activiteit,SMALL(IF(Doel=$H$2,ROW(Activiteit)-MIN(ROW(Activiteit))+1),ROWS($B$3:B56)))&CHAR(10),\"\")","v":""}]
[null,{"$f":"IFERROR(INDEX(Activiteit,SMALL(IF(Doel=$B$2,ROW(Activiteit)-MIN(ROW(Activiteit))+1),ROWS($B$3:B57)))&\" \"&CHAR(10)&(INDEX(Resultaat,SMALL(IF(Doel=$B$2,ROW(Resultaat)-MIN(ROW(Resultaat))+1),ROWS($B$3:B57))))&CHAR(10),\"\")","v":""},null,{"$f":"IFERROR(INDEX(Activiteit,SMALL(IF(Doel=$D$2,ROW(Activiteit)-MIN(ROW(Activiteit))+1),ROWS($B$3:B57)))&CHAR(10),\"\")","v":""},null,{"$f":"IFERROR(INDEX(Activiteit,SMALL(IF(Doel=$F$2,ROW(Activiteit)-MIN(ROW(Activiteit))+1),ROWS($B$3:B57)))&CHAR(10),\"\")","v":""},null,{"$f":"IFERROR(INDEX(Activiteit,SMALL(IF(Doel=$H$2,ROW(Activiteit)-MIN(ROW(Activiteit))+1),ROWS($B$3:B57)))&CHAR(10),\"\")","v":""}]
[null,{"$f":"IFERROR(INDEX(Activiteit,SMALL(IF(Doel=$B$2,ROW(Activiteit)-MIN(ROW(Activiteit))+1),ROWS($B$3:B58)))&\" \"&CHAR(10)&(INDEX(Resultaat,SMALL(IF(Doel=$B$2,ROW(Resultaat)-MIN(ROW(Resultaat))+1),ROWS($B$3:B58))))&CHAR(10),\"\")","v":""},null,{"$f":"IFERROR(INDEX(Activiteit,SMALL(IF(Doel=$D$2,ROW(Activiteit)-MIN(ROW(Activiteit))+1),ROWS($B$3:B58)))&CHAR(10),\"\")","v":""},null,{"$f":"IFERROR(INDEX(Activiteit,SMALL(IF(Doel=$F$2,ROW(Activiteit)-MIN(ROW(Activiteit))+1),ROWS($B$3:B58)))&CHAR(10),\"\")","v":""},null,{"$f":"IFERROR(INDEX(Activiteit,SMALL(IF(Doel=$H$2,ROW(Activiteit)-MIN(ROW(Activiteit))+1),ROWS($B$3:B58)))&CHAR(10),\"\")","v":""}]
[null,{"$f":"IFERROR(INDEX(Activiteit,SMALL(IF(Doel=$B$2,ROW(Activiteit)-MIN(ROW(Activiteit))+1),ROWS($B$3:B59)))&\" \"&CHAR(10)&(INDEX(Resultaat,SMALL(IF(Doel=$B$2,ROW(Resultaat)-MIN(ROW(Resultaat))+1),ROWS($B$3:B59))))&CHAR(10),\"\")","v":""},null,{"$f":"IFERROR(INDEX(Activiteit,SMALL(IF(Doel=$D$2,ROW(Activiteit)-MIN(ROW(Activiteit))+1),ROWS($B$3:B59)))&CHAR(10),\"\")","v":""},null,{"$f":"IFERROR(INDEX(Activiteit,SMALL(IF(Doel=$F$2,ROW(Activiteit)-MIN(ROW(Activiteit))+1),ROWS($B$3:B59)))&CHAR(10),\"\")","v":""},null,{"$f":"IFERROR(INDEX(Activiteit,SMALL(IF(Doel=$H$2,ROW(Activiteit)-MIN(ROW(Activiteit))+1),ROWS($B$3:B59)))&CHAR(10),\"\")","v":""}]
[null,{"$f":"IFERROR(INDEX(Activiteit,SMALL(IF(Doel=$B$2,ROW(Activiteit)-MIN(ROW(Activiteit))+1),ROWS($B$3:B60)))&\" \"&CHAR(10)&(INDEX(Resultaat,SMALL(IF(Doel=$B$2,ROW(Resultaat)-MIN(ROW(Resultaat))+1),ROWS($B$3:B60))))&CHAR(10),\"\")","v":""},null,{"$f":"IFERROR(INDEX(Activiteit,SMALL(IF(Doel=$D$2,ROW(Activiteit)-MIN(ROW(Activiteit))+1),ROWS($B$3:B60)))&CHAR(10),\"\")","v":""},null,{"$f":"IFERROR(INDEX(Activiteit,SMALL(IF(Doel=$F$2,ROW(Activiteit)-MIN(ROW(Activiteit))+1),ROWS($B$3:B60)))&CHAR(10),\"\")","v":""},null,{"$f":"IFERROR(INDEX(Activiteit,SMALL(IF(Doel=$H$2,ROW(Activiteit)-MIN(ROW(Activiteit))+1),ROWS($B$3:B60)))&CHAR(10),\"\")","v":""}]
[null,{"$f":"IFERROR(INDEX(Activiteit,SMALL(IF(Doel=$B$2,ROW(Activiteit)-MIN(ROW(Activiteit))+1),ROWS($B$3:B61)))&\" \"&CHAR(10)&(INDEX(Resultaat,SMALL(IF(Doel=$B$2,ROW(Resultaat)-MIN(ROW(Resultaat))+1),ROWS($B$3:B61))))&CHAR(10),\"\")","v":""},null,{"$f":"IFERROR(INDEX(Activiteit,SMALL(IF(Doel=$D$2,ROW(Activiteit)-MIN(ROW(Activiteit))+1),ROWS($B$3:B61)))&CHAR(10),\"\")","v":""},null,{"$f":"IFERROR(INDEX(Activiteit,SMALL(IF(Doel=$F$2,ROW(Activiteit)-MIN(ROW(Activiteit))+1),ROWS($B$3:B61)))&CHAR(10),\"\")","v":""},null,{"$f":"IFERROR(INDEX(Activiteit,SMALL(IF(Doel=$H$2,ROW(Activiteit)-MIN(ROW(Activiteit))+1),ROWS($B$3:B61)))&CHAR(10),\"\")","v":""}]
[null,{"$f":"IFERROR(INDEX(Activiteit,SMALL(IF(Doel=$B$2,ROW(Activiteit)-MIN(ROW(Activiteit))+1),ROWS($B$3:B62)))&\" \"&CHAR(10)&(INDEX(Resultaat,SMALL(IF(Doel=$B$2,ROW(Resultaat)-MIN(ROW(Resultaat))+1),ROWS($B$3:B62))))&CHAR(10),\"\")","v":""},null,{"$f":"IFERROR(INDEX(Activiteit,SMALL(IF(Doel=$D$2,ROW(Activiteit)-MIN(ROW(Activiteit))+1),ROWS($B$3:B62)))&CHAR(10),\"\")","v":""},null,{"$f":"IFERROR(INDEX(Activiteit,SMALL(IF(Doel=$F$2,ROW(Activiteit)-MIN(ROW(Activiteit))+1),ROWS($B$3:B62)))&CHAR(10),\"\")","v":""},null,{"$f":"IFERROR(INDEX(Activiteit,SMALL(IF(Doel=$H$2,ROW(Activiteit)-MIN(ROW(Activiteit))+1),ROWS($B$3:B62)))&CHAR(10),\"\")","v":""}]
[null,{"$f":"IFERROR(INDEX(Activiteit,SMALL(IF(Doel=$B$2,ROW(Activiteit)-MIN(ROW(Activiteit))+1),ROWS($B$3:B63)))&\" \"&CHAR(10)&(INDEX(Resultaat,SMALL(IF(Doel=$B$2,ROW(Resultaat)-MIN(ROW(Resultaat))+1),ROWS($B$3:B63))))&CHAR(10),\"\")","v":""},null,{"$f":"IFERROR(INDEX(Activiteit,SMALL(IF(Doel=$D$2,ROW(Activiteit)-MIN(ROW(Activiteit))+1),ROWS($B$3:B63)))&CHAR(10),\"\")","v":""},null,{"$f":"IFERROR(INDEX(Activiteit,SMALL(IF(Doel=$F$2,ROW(Activiteit)-MIN(ROW(Activiteit))+1),ROWS($B$3:B63)))&CHAR(10),\"\")","v":""},null,{"$f":"IFERROR(INDEX(Activiteit,SMALL(IF(Doel=$H$2,ROW(Activiteit)-MIN(ROW(Activiteit))+1),ROWS($B$3:B63)))&CHAR(10),\"\")","v":""}]
[null,{"$f":"IFERROR(INDEX(Activiteit,SMALL(IF(Doel=$B$2,ROW(Activiteit)-MIN(ROW(Activiteit))+1),ROWS($B$3:B64)))&\" \"&CHAR(10)&(INDEX(Resultaat,SMALL(IF(Doel=$B$2,ROW(Resultaat)-MIN(ROW(Resultaat))+1),ROWS($B$3:B64))))&CHAR(10),\"\")","v":""},null,{"$f":"IFERROR(INDEX(Activiteit,SMALL(IF(Doel=$D$2,ROW(Activiteit)-MIN(ROW(Activiteit))+1),ROWS($B$3:B64)))&CHAR(10),\"\")","v":""},null,{"$f":"IFERROR(INDEX(Activiteit,SMALL(IF(Doel=$F$2,ROW(Activiteit)-MIN(ROW(Activiteit))+1),ROWS($B$3:B64)))&CHAR(10),\"\")","v":""},null,{"$f":"IFERROR(INDEX(Activiteit,SMALL(IF(Doel=$H$2,ROW(Activiteit)-MIN(ROW(Activiteit))+1),ROWS($B$3:B64)))&CHAR(10),\"\")","v":""}]
[null,{"$f":"IFERROR(INDEX(Activiteit,SMALL(IF(Doel=$B$2,ROW(Activiteit)-MIN(ROW(Activiteit))+1),ROWS($B$3:B65)))&\" \"&CHAR(10)&(INDEX(Resultaat,SMALL(IF(Doel=$B$2,ROW(Resultaat)-MIN(ROW(Resultaat))+1),ROWS($B$3:B65))))&CHAR(10),\"\")","v":""},null,{"$f":"IFERROR(INDEX(Activiteit,SMALL(IF(Doel=$D$2,ROW(Activiteit)-MIN(ROW(Activiteit))+1),ROWS($B$3:B65)))&CHAR(10),\"\")","v":""},null,{"$f":"IFERROR(INDEX(Activiteit,SMALL(IF(Doel=$F$2,ROW(Activiteit)-MIN(ROW(Activiteit))+1),ROWS($B$3:B65)))&CHAR(10),\"\")","v":""},null,{"$f":"IFERROR(INDEX(Activiteit,SMALL(IF(Doel=$H$2,ROW(Activiteit)-MIN(ROW(Activiteit))+1),ROWS($B$3:B65)))&CHAR(10),\"\")","v":""}]
[null,{"$f":"IFERROR(INDEX(Activiteit,SMALL(IF(Doel=$B$2,ROW(Activiteit)-MIN(ROW(Activiteit))+1),ROWS($B$3:B66)))&\" \"&CHAR(10)&(INDEX(Resultaat,SMALL(IF(Doel=$B$2,ROW(Resultaat)-MIN(ROW(Resultaat))+1),ROWS($B$3:B66))))&CHAR(10),\"\")","v":""},null,{"$f":"IFERROR(INDEX(Activiteit,SMALL(IF(Doel=$D$2,ROW(Activiteit)-MIN(ROW(Activiteit))+1),ROWS($B$3:B66)))&CHAR(10),\"\")","v":""},null,{"$f":"IFERROR(INDEX(Activiteit,SMALL(IF(Doel=$F$2,ROW(Activiteit)-MIN(ROW(Activiteit))+1),ROWS($B$3:B66)))&CHAR(10),\"\")","v":""},null,{"$f":"IFERROR(INDEX(Activiteit,SMALL(IF(Doel=$H$2,ROW(Activiteit)-MIN(ROW(Activiteit))+1),ROWS($B$3:B66)))&CHAR(10),\"\")","v":""}]
[null,{"$f":"IFERROR(INDEX(Activiteit,SMALL(IF(Doel=$B$2,ROW(Activiteit)-MIN(ROW(Activiteit))+1),ROWS($B$3:B67)))&\" \"&CHAR(10)&(INDEX(Resultaat,SMALL(IF(Doel=$B$2,ROW(Resultaat)-MIN(ROW(Resultaat))+1),ROWS($B$3:B67))))&CHAR(10),\"\")","v":""},null,{"$f":"IFERROR(INDEX(Activiteit,SMALL(IF(Doel=$D$2,ROW(Activiteit)-MIN(ROW(Activiteit))+1),ROWS($B$3:B67)))&CHAR(10),\"\")","v":""},null,{"$f":"IFERROR(INDEX(Activiteit,SMALL(IF(Doel=$F$2,ROW(Activiteit)-MIN(ROW(Activiteit))+1),ROWS($B$3:B67)))&CHAR(10),\"\")","v":""},null,{"$f":"IFERROR(INDEX(Activiteit,SMALL(IF(Doel=$H$2,ROW(Activiteit)-MIN(ROW(Activiteit))+1),ROWS($B$3:B67)))&CHAR(10),\"\")","v":""}]
[null,{"$f":"IFERROR(INDEX(Activiteit,SMALL(IF(Doel=$B$2,ROW(Activiteit)-MIN(ROW(Activiteit))+1),ROWS($B$3:B68)))&\" \"&CHAR(10)&(INDEX(Resultaat,SMALL(IF(Doel=$B$2,ROW(Resultaat)-MIN(ROW(Resultaat))+1),ROWS($B$3:B68))))&CHAR(10),\"\")","v":""},null,{"$f":"IFERROR(INDEX(Activiteit,SMALL(IF(Doel=$D$2,ROW(Activiteit)-MIN(ROW(Activiteit))+1),ROWS($B$3:B68)))&CHAR(10),\"\")","v":""},null,{"$f":"IFERROR(INDEX(Activiteit,SMALL(IF(Doel=$F$2,ROW(Activiteit)-MIN(ROW(Activiteit))+1),ROWS($B$3:B68)))&CHAR(10),\"\")","v":""},null,{"$f":"IFERROR(INDEX(Activiteit,SMALL(IF(Doel=$H$2,ROW(Activiteit)-MIN(ROW(Activiteit))+1),ROWS($B$3:B68)))&CHAR(10),\"\")","v":""}]
[null,{"$f":"IFERROR(INDEX(Activiteit,SMALL(IF(Doel=$B$2,ROW(Activiteit)-MIN(ROW(Activiteit))+1),ROWS($B$3:B69)))&\" \"&CHAR(10)&(INDEX(Resultaat,SMALL(IF(Doel=$B$2,ROW(Resultaat)-MIN(ROW(Resultaat))+1),ROWS($B$3:B69))))&CHAR(10),\"\")","v":""},null,{"$f":"IFERROR(INDEX(Activiteit,SMALL(IF(Doel=$D$2,ROW(Activiteit)-MIN(ROW(Activiteit))+1),ROWS($B$3:B69)))&CHAR(10),\"\")","v":""},null,{"$f":"IFERROR(INDEX(Activiteit,SMALL(IF(Doel=$F$2,ROW(Activiteit)-MIN(ROW(Activiteit))+1),ROWS($B$3:B69)))&CHAR(10),\"\")","v":""},null,{"$f":"IFERROR(INDEX(Activiteit,SMALL(IF(Doel=$H$2,ROW(Activiteit)-MIN(ROW(Activiteit))+1),ROWS($B$3:B69)))&CHAR(10),\"\")","v":""}]
[null,{"$f":"IFERROR(INDEX(Activiteit,SMALL(IF(Doel=$B$2,ROW(Activiteit)-MIN(ROW(Activiteit))+1),ROWS($B$3:B70)))&\" \"&CHAR(10)&(INDEX(Resultaat,SMALL(IF(Doel=$B$2,ROW(Resultaat)-MIN(ROW(Resultaat))+1),ROWS($B$3:B70))))&CHAR(10),\"\")","v":""},null,{"$f":"IFERROR(INDEX(Activiteit,SMALL(IF(Doel=$D$2,ROW(Activiteit)-MIN(ROW(Activiteit))+1),ROWS($B$3:B70)))&CHAR(10),\"\")","v":""},null,{"$f":"IFERROR(INDEX(Activiteit,SMALL(IF(Doel=$F$2,ROW(Activiteit)-MIN(ROW(Activiteit))+1),ROWS($B$3:B70)))&CHAR(10),\"\")","v":""},null,{"$f":"IFERROR(INDEX(Activiteit,SMALL(IF(Doel=$H$2,ROW(Activiteit)-MIN(ROW(Activiteit))+1),ROWS($B$3:B70)))&CHAR(10),\"\")","v":""}]
[null,{"$f":"IFERROR(INDEX(Activiteit,SMALL(IF(Doel=$B$2,ROW(Activiteit)-MIN(ROW(Activiteit))+1),ROWS($B$3:B71)))&\" \"&CHAR(10)&(INDEX(Resultaat,SMALL(IF(Doel=$B$2,ROW(Resultaat)-MIN(ROW(Resultaat))+1),ROWS($B$3:B71))))&CHAR(10),\"\")","v":""},null,{"$f":"IFERROR(INDEX(Activiteit,SMALL(IF(Doel=$D$2,ROW(Activiteit)-MIN(ROW(Activiteit))+1),ROWS($B$3:B71)))&CHAR(10),\"\")","v":""},null,{"$f":"IFERROR(INDEX(Activiteit,SMALL(IF(Doel=$F$2,ROW(Activiteit)-MIN(ROW(Activiteit))+1),ROWS($B$3:B71)))&CHAR(10),\"\")","v":""},null,{"$f":"IFERROR(INDEX(Activiteit,SMALL(IF(Doel=$H$2,ROW(Activiteit)-MIN(ROW(Activiteit))+1),ROWS($B$3:B71)))&CHAR(10),\"\")","v":""}]
[null,{"$f":"IFERROR(INDEX(Activiteit,SMALL(IF(Doel=$B$2,ROW(Activiteit)-MIN(ROW(Activiteit))+1),ROWS($B$3:B72)))&\" \"&CHAR(10)&(INDEX(Resultaat,SMALL(IF(Doel=$B$2,ROW(Resultaat)-MIN(ROW(Resultaat))+1),ROWS($B$3:B72))))&CHAR(10),\"\")","v":""},null,{"$f":"IFERROR(INDEX(Activiteit,SMALL(IF(Doel=$D$2,ROW(Activiteit)-MIN(ROW(Activiteit))+1),ROWS($B$3:B72)))&CHAR(10),\"\")","v":""},null,{"$f":"IFERROR(INDEX(Activiteit,SMALL(IF(Doel=$F$2,ROW(Activiteit)-MIN(ROW(Activiteit))+1),ROWS($B$3:B72)))&CHAR(10),\"\")","v":""},null,{"$f":"IFERROR(INDEX(Activiteit,SMALL(IF(Doel=$H$2,ROW(Activiteit)-MIN(ROW(Activiteit))+1),ROWS($B$3:B72)))&CHAR(10),\"\")","v":""}]
[null,{"$f":"IFERROR(INDEX(Activiteit,SMALL(IF(Doel=$B$2,ROW(Activiteit)-MIN(ROW(Activiteit))+1),ROWS($B$3:B73)))&\" \"&CHAR(10)&(INDEX(Resultaat,SMALL(IF(Doel=$B$2,ROW(Resultaat)-MIN(ROW(Resultaat))+1),ROWS($B$3:B73))))&CHAR(10),\"\")","v":""},null,{"$f":"IFERROR(INDEX(Activiteit,SMALL(IF(Doel=$D$2,ROW(Activiteit)-MIN(ROW(Activiteit))+1),ROWS($B$3:B73)))&CHAR(10),\"\")","v":""},null,{"$f":"IFERROR(INDEX(Activiteit,SMALL(IF(Doel=$F$2,ROW(Activiteit)-MIN(ROW(Activiteit))+1),ROWS($B$3:B73)))&CHAR(10),\"\")","v":""},null,{"$f":"IFERROR(INDEX(Activiteit,SMALL(IF(Doel=$H$2,ROW(Activiteit)-MIN(ROW(Activiteit))+1),ROWS($B$3:B73)))&CHAR(10),\"\")","v":""}]
[null,{"$f":"IFERROR(INDEX(Activiteit,SMALL(IF(Doel=$B$2,ROW(Activiteit)-MIN(ROW(Activiteit))+1),ROWS($B$3:B74)))&\" \"&CHAR(10)&(INDEX(Resultaat,SMALL(IF(Doel=$B$2,ROW(Resultaat)-MIN(ROW(Resultaat))+1),ROWS($B$3:B74))))&CHAR(10),\"\")","v":""},null,{"$f":"IFERROR(INDEX(Activiteit,SMALL(IF(Doel=$D$2,ROW(Activiteit)-MIN(ROW(Activiteit))+1),ROWS($B$3:B74)))&CHAR(10),\"\")","v":""},null,{"$f":"IFERROR(INDEX(Activiteit,SMALL(IF(Doel=$F$2,ROW(Activiteit)-MIN(ROW(Activiteit))+1),ROWS($B$3:B74)))&CHAR(10),\"\")","v":""},null,{"$f":"IFERROR(INDEX(Activiteit,SMALL(IF(Doel=$H$2,ROW(Activiteit)-MIN(ROW(Activiteit))+1),ROWS($B$3:B74)))&CHAR(10),\"\")","v":""}]
[null,{"$f":"IFERROR(INDEX(Activiteit,SMALL(IF(Doel=$B$2,ROW(Activiteit)-MIN(ROW(Activiteit))+1),ROWS($B$3:B75)))&\" \"&CHAR(10)&(INDEX(Resultaat,SMALL(IF(Doel=$B$2,ROW(Resultaat)-MIN(ROW(Resultaat))+1),ROWS($B$3:B75))))&CHAR(10),\"\")","v":""},null,{"$f":"IFERROR(INDEX(Activiteit,SMALL(IF(Doel=$D$2,ROW(Activiteit)-MIN(ROW(Activiteit))+1),ROWS($B$3:B75)))&CHAR(10),\"\")","v":""},null,{"$f":"IFERROR(INDEX(Activiteit,SMALL(IF(Doel=$F$2,ROW(Activiteit)-MIN(ROW(Activiteit))+1),ROWS($B$3:B75)))&CHAR(10),\"\")","v":""},null,{"$f":"IFERROR(INDEX(Activiteit,SMALL(IF(Doel=$H$2,ROW(Activiteit)-MIN(ROW(Activiteit))+1),ROWS($B$3:B75)))&CHAR(10),\"\")","v":""}]
[null,{"$f":"IFERROR(INDEX(Activiteit,SMALL(IF(Doel=$B$2,ROW(Activiteit)-MIN(ROW(Activiteit))+1),ROWS($B$3:B76)))&\" \"&CHAR(10)&(INDEX(Resultaat,SMALL(IF(Doel=$B$2,ROW(Resultaat)-MIN(ROW(Resultaat))+1),ROWS($B$3:B76))))&CHAR(10),\"\")","v":""},null,{"$f":"IFERROR(INDEX(Activiteit,SMALL(IF(Doel=$D$2,ROW(Activiteit)-MIN(ROW(Activiteit))+1),ROWS($B$3:B76)))&CHAR(10),\"\")","v":""},null,{"$f":"IFERROR(INDEX(Activiteit,SMALL(IF(Doel=$F$2,ROW(Activiteit)-MIN(ROW(Activiteit))+1),ROWS($B$3:B76)))&CHAR(10),\"\")","v":""},null,{"$f":"IFERROR(INDEX(Activiteit,SMALL(IF(Doel=$H$2,ROW(Activiteit)-MIN(ROW(Activiteit))+1),ROWS($B$3:B76)))&CHAR(10),\"\")","v":""}]
[null,{"$f":"IFERROR(INDEX(Activiteit,SMALL(IF(Doel=$B$2,ROW(Activiteit)-MIN(ROW(Activiteit))+1),ROWS($B$3:B77)))&\" \"&CHAR(10)&(INDEX(Resultaat,SMALL(IF(Doel=$B$2,ROW(Resultaat)-MIN(ROW(Resultaat))+1),ROWS($B$3:B77))))&CHAR(10),\"\")","v":""},null,{"$f":"IFERROR(INDEX(Activiteit,SMALL(IF(Doel=$D$2,ROW(Activiteit)-MIN(ROW(Activiteit))+1),ROWS($B$3:B77)))&CHAR(10),\"\")","v":""},null,{"$f":"IFERROR(INDEX(Activiteit,SMALL(IF(Doel=$F$2,ROW(Activiteit)-MIN(ROW(Activiteit))+1),ROWS($B$3:B77)))&CHAR(10),\"\")","v":""},null,{"$f":"IFERROR(INDEX(Activiteit,SMALL(IF(Doel=$H$2,ROW(Activiteit)-MIN(ROW(Activiteit))+1),ROWS($B$3:B77)))&CHAR(10),\"\")","v":""}]
[null,{"$f":"IFERROR(INDEX(Activiteit,SMALL(IF(Doel=$B$2,ROW(Activiteit)-MIN(ROW(Activiteit))+1),ROWS($B$3:B78)))&\" \"&CHAR(10)&(INDEX(Resultaat,SMALL(IF(Doel=$B$2,ROW(Resultaat)-MIN(ROW(Resultaat))+1),ROWS($B$3:B78))))&CHAR(10),\"\")","v":""},null,{"$f":"IFERROR(INDEX(Activiteit,SMALL(IF(Doel=$D$2,ROW(Activiteit)-MIN(ROW(Activiteit))+1),ROWS($B$3:B78)))&CHAR(10),\"\")","v":""},null,{"$f":"IFERROR(INDEX(Activiteit,SMALL(IF(Doel=$F$2,ROW(Activiteit)-MIN(ROW(Activiteit))+1),ROWS($B$3:B78)))&CHAR(10),\"\")","v":""},null,{"$f":"IFERROR(INDEX(Activiteit,SMALL(IF(Doel=$H$2,ROW(Activiteit)-MIN(ROW(Activiteit))+1),ROWS($B$3:B78)))&CHAR(10),\"\")","v":""}]
[null,{"$f":"IFERROR(INDEX(Activiteit,SMALL(IF(Doel=$B$2,ROW(Activiteit)-MIN(ROW(Activiteit))+1),ROWS($B$3:B79)))&\" \"&CHAR(10)&(INDEX(Resultaat,SMALL(IF(Doel=$B$2,ROW(Resultaat)-MIN(ROW(Resultaat))+1),ROWS($B$3:B79))))&CHAR(10),\"\")","v":""},null,{"$f":"IFERROR(INDEX(Activiteit,SMALL(IF(Doel=$D$2,ROW(Activiteit)-MIN(ROW(Activiteit))+1),ROWS($B$3:B79)))&CHAR(10),\"\")","v":""},null,{"$f":"IFERROR(INDEX(Activiteit,SMALL(IF(Doel=$F$2,ROW(Activiteit)-MIN(ROW(Activiteit))+1),ROWS($B$3:B79)))&CHAR(10),\"\")","v":""},null,{"$f":"IFERROR(INDEX(Activiteit,SMALL(IF(Doel=$H$2,ROW(Activiteit)-MIN(ROW(Activiteit))+1),ROWS($B$3:B79)))&CHAR(10),\"\")","v":""}]
[null,{"$f":"IFERROR(INDEX(Activiteit,SMALL(IF(Doel=$B$2,ROW(Activiteit)-MIN(ROW(Activiteit))+1),ROWS($B$3:B80)))&\" \"&CHAR(10)&(INDEX(Resultaat,SMALL(IF(Doel=$B$2,ROW(Resultaat)-MIN(ROW(Resultaat))+1),ROWS($B$3:B80))))&CHAR(10),\"\")","v":""},null,{"$f":"IFERROR(INDEX(Activiteit,SMALL(IF(Doel=$D$2,ROW(Activiteit)-MIN(ROW(Activiteit))+1),ROWS($B$3:B80)))&CHAR(10),\"\")","v":""},null,{"$f":"IFERROR(INDEX(Activiteit,SMALL(IF(Doel=$F$2,ROW(Activiteit)-MIN(ROW(Activiteit))+1),ROWS($B$3:B80)))&CHAR(10),\"\")","v":""},null,{"$f":"IFERROR(INDEX(Activiteit,SMALL(IF(Doel=$H$2,ROW(Activiteit)-MIN(ROW(Activiteit))+1),ROWS($B$3:B80)))&CHAR(10),\"\")","v":""}]
[null,{"$f":"IFERROR(INDEX(Activiteit,SMALL(IF(Doel=$B$2,ROW(Activiteit)-MIN(ROW(Activiteit))+1),ROWS($B$3:B81)))&\" \"&CHAR(10)&(INDEX(Resultaat,SMALL(IF(Doel=$B$2,ROW(Resultaat)-MIN(ROW(Resultaat))+1),ROWS($B$3:B81))))&CHAR(10),\"\")","v":""},null,{"$f":"IFERROR(INDEX(Activiteit,SMALL(IF(Doel=$D$2,ROW(Activiteit)-MIN(ROW(Activiteit))+1),ROWS($B$3:B81)))&CHAR(10),\"\")","v":""},null,{"$f":"IFERROR(INDEX(Activiteit,SMALL(IF(Doel=$F$2,ROW(Activiteit)-MIN(ROW(Activiteit))+1),ROWS($B$3:B81)))&CHAR(10),\"\")","v":""},null,{"$f":"IFERROR(INDEX(Activiteit,SMALL(IF(Doel=$H$2,ROW(Activiteit)-MIN(ROW(Activiteit))+1),ROWS($B$3:B81)))&CHAR(10),\"\")","v":""}]
[null,{"$f":"IFERROR(INDEX(Activiteit,SMALL(IF(Doel=$B$2,ROW(Activiteit)-MIN(ROW(Activiteit))+1),ROWS($B$3:B82)))&\" \"&CHAR(10)&(INDEX(Resultaat,SMALL(IF(Doel=$B$2,ROW(Resultaat)-MIN(ROW(Resultaat))+1),ROWS($B$3:B82))))&CHAR(10),\"\")","v":""},null,{"$f":"IFERROR(INDEX(Activiteit,SMALL(IF(Doel=$D$2,ROW(Activiteit)-MIN(ROW(Activiteit))+1),ROWS($B$3:B82)))&CHAR(10),\"\")","v":""},null,{"$f":"IFERROR(INDEX(Activiteit,SMALL(IF(Doel=$F$2,ROW(Activiteit)-MIN(ROW(Activiteit))+1),ROWS($B$3:B82)))&CHAR(10),\"\")","v":""},null,{"$f":"IFERROR(INDEX(Activiteit,SMALL(IF(Doel=$H$2,ROW(Activiteit)-MIN(ROW(Activiteit))+1),ROWS($B$3:B82)))&CHAR(10),\"\")","v":""}]
[null,{"$f":"IFERROR(INDEX(Activiteit,SMALL(IF(Doel=$B$2,ROW(Activiteit)-MIN(ROW(Activiteit))+1),ROWS($B$3:B83)))&\" \"&CHAR(10)&(INDEX(Resultaat,SMALL(IF(Doel=$B$2,ROW(Resultaat)-MIN(ROW(Resultaat))+1),ROWS($B$3:B83))))&CHAR(10),\"\")","v":""},null,{"$f":"IFERROR(INDEX(Activiteit,SMALL(IF(Doel=$D$2,ROW(Activiteit)-MIN(ROW(Activiteit))+1),ROWS($B$3:B83)))&CHAR(10),\"\")","v":""},null,{"$f":"IFERROR(INDEX(Activiteit,SMALL(IF(Doel=$F$2,ROW(Activiteit)-MIN(ROW(Activiteit))+1),ROWS($B$3:B83)))&CHAR(10),\"\")","v":""},null,{"$f":"IFERROR(INDEX(Activiteit,SMALL(IF(Doel=$H$2,ROW(Activiteit)-MIN(ROW(Activiteit))+1),ROWS($B$3:B83)))&CHAR(10),\"\")","v":""}]
[null,{"$f":"IFERROR(INDEX(Activiteit,SMALL(IF(Doel=$B$2,ROW(Activiteit)-MIN(ROW(Activiteit))+1),ROWS($B$3:B84)))&\" \"&CHAR(10)&(INDEX(Resultaat,SMALL(IF(Doel=$B$2,ROW(Resultaat)-MIN(ROW(Resultaat))+1),ROWS($B$3:B84))))&CHAR(10),\"\")","v":""},null,{"$f":"IFERROR(INDEX(Activiteit,SMALL(IF(Doel=$D$2,ROW(Activiteit)-MIN(ROW(Activiteit))+1),ROWS($B$3:B84)))&CHAR(10),\"\")","v":""},null,{"$f":"IFERROR(INDEX(Activiteit,SMALL(IF(Doel=$F$2,ROW(Activiteit)-MIN(ROW(Activiteit))+1),ROWS($B$3:B84)))&CHAR(10),\"\")","v":""},null,{"$f":"IFERROR(INDEX(Activiteit,SMALL(IF(Doel=$H$2,ROW(Activiteit)-MIN(ROW(Activiteit))+1),ROWS($B$3:B84)))&CHAR(10),\"\")","v":""}]
[null,{"$f":"IFERROR(INDEX(Activiteit,SMALL(IF(Doel=$B$2,ROW(Activiteit)-MIN(ROW(Activiteit))+1),ROWS($B$3:B85)))&\" \"&CHAR(10)&(INDEX(Resultaat,SMALL(IF(Doel=$B$2,ROW(Resultaat)-MIN(ROW(Resultaat))+1),ROWS($B$3:B85))))&CHAR(10),\"\")","v":""},null,{"$f":"IFERROR(INDEX(Activiteit,SMALL(IF(Doel=$D$2,ROW(Activiteit)-MIN(ROW(Activiteit))+1),ROWS($B$3:B85)))&CHAR(10),\"\")","v":""},null,{"$f":"IFERROR(INDEX(Activiteit,SMALL(IF(Doel=$F$2,ROW(Activiteit)-MIN(ROW(Activiteit))+1),ROWS($B$3:B85)))&CHAR(10),\"\")","v":""},null,{"$f":"IFERROR(INDEX(Activiteit,SMALL(IF(Doel=$H$2,ROW(Activiteit)-MIN(ROW(Activiteit))+1),ROWS($B$3:B85)))&CHAR(10),\"\")","v":""}]
[null,{"$f":"IFERROR(INDEX(Activiteit,SMALL(IF(Doel=$B$2,ROW(Activiteit)-MIN(ROW(Activiteit))+1),ROWS($B$3:B86)))&\" \"&CHAR(10)&(INDEX(Resultaat,SMALL(IF(Doel=$B$2,ROW(Resultaat)-MIN(ROW(Resultaat))+1),ROWS($B$3:B86))))&CHAR(10),\"\")","v":""},null,{"$f":"IFERROR(INDEX(Activiteit,SMALL(IF(Doel=$D$2,ROW(Activiteit)-MIN(ROW(Activiteit))+1),ROWS($B$3:B86)))&CHAR(10),\"\")","v":""},null,{"$f":"IFERROR(INDEX(Activiteit,SMALL(IF(Doel=$F$2,ROW(Activiteit)-MIN(ROW(Activiteit))+1),ROWS($B$3:B86)))&CHAR(10),\"\")","v":""},null,{"$f":"IFERROR(INDEX(Activiteit,SMALL(IF(Doel=$H$2,ROW(Activiteit)-MIN(ROW(Activiteit))+1),ROWS($B$3:B86)))&CHAR(10),\"\")","v":""}]
[null,{"$f":"IFERROR(INDEX(Activiteit,SMALL(IF(Doel=$B$2,ROW(Activiteit)-MIN(ROW(Activiteit))+1),ROWS($B$3:B87)))&\" \"&CHAR(10)&(INDEX(Resultaat,SMALL(IF(Doel=$B$2,ROW(Resultaat)-MIN(ROW(Resultaat))+1),ROWS($B$3:B87))))&CHAR(10),\"\")","v":""},null,{"$f":"IFERROR(INDEX(Activiteit,SMALL(IF(Doel=$D$2,ROW(Activiteit)-MIN(ROW(Activiteit))+1),ROWS($B$3:B87)))&CHAR(10),\"\")","v":""},null,{"$f":"IFERROR(INDEX(Activiteit,SMALL(IF(Doel=$F$2,ROW(Activiteit)-MIN(ROW(Activiteit))+1),ROWS($B$3:B87)))&CHAR(10),\"\")","v":""},null,{"$f":"IFERROR(INDEX(Activiteit,SMALL(IF(Doel=$H$2,ROW(Activiteit)-MIN(ROW(Activiteit))+1),ROWS($B$3:B87)))&CHAR(10),\"\")","v":""}]
[null,{"$f":"IFERROR(INDEX(Activiteit,SMALL(IF(Doel=$B$2,ROW(Activiteit)-MIN(ROW(Activiteit))+1),ROWS($B$3:B88)))&\" \"&CHAR(10)&(INDEX(Resultaat,SMALL(IF(Doel=$B$2,ROW(Resultaat)-MIN(ROW(Resultaat))+1),ROWS($B$3:B88))))&CHAR(10),\"\")","v":""},null,{"$f":"IFERROR(INDEX(Activiteit,SMALL(IF(Doel=$D$2,ROW(Activiteit)-MIN(ROW(Activiteit))+1),ROWS($B$3:B88)))&CHAR(10),\"\")","v":""},null,{"$f":"IFERROR(INDEX(Activiteit,SMALL(IF(Doel=$F$2,ROW(Activiteit)-MIN(ROW(Activiteit))+1),ROWS($B$3:B88)))&CHAR(10),\"\")","v":""},null,{"$f":"IFERROR(INDEX(Activiteit,SMALL(IF(Doel=$H$2,ROW(Activiteit)-MIN(ROW(Activiteit))+1),ROWS($B$3:B88)))&CHAR(10),\"\")","v":""}]
[null,{"$f":"IFERROR(INDEX(Activiteit,SMALL(IF(Doel=$B$2,ROW(Activiteit)-MIN(ROW(Activiteit))+1),ROWS($B$3:B89)))&\" \"&CHAR(10)&(INDEX(Resultaat,SMALL(IF(Doel=$B$2,ROW(Resultaat)-MIN(ROW(Resultaat))+1),ROWS($B$3:B89))))&CHAR(10),\"\")","v":""},null,{"$f":"IFERROR(INDEX(Activiteit,SMALL(IF(Doel=$D$2,ROW(Activiteit)-MIN(ROW(Activiteit))+1),ROWS($B$3:B89)))&CHAR(10),\"\")","v":""},null,{"$f":"IFERROR(INDEX(Activiteit,SMALL(IF(Doel=$F$2,ROW(Activiteit)-MIN(ROW(Activiteit))+1),ROWS($B$3:B89)))&CHAR(10),\"\")","v":""},null,{"$f":"IFERROR(INDEX(Activiteit,SMALL(IF(Doel=$H$2,ROW(Activiteit)-MIN(ROW(Activiteit))+1),ROWS($B$3:B89)))&CHAR(10),\"\")","v":""}]
[null,{"$f":"IFERROR(INDEX(Activiteit,SMALL(IF(Doel=$B$2,ROW(Activiteit)-MIN(ROW(Activiteit))+1),ROWS($B$3:B90)))&\" \"&CHAR(10)&(INDEX(Resultaat,SMALL(IF(Doel=$B$2,ROW(Resultaat)-MIN(ROW(Resultaat))+1),ROWS($B$3:B90))))&CHAR(10),\"\")","v":""},null,{"$f":"IFERROR(INDEX(Activiteit,SMALL(IF(Doel=$D$2,ROW(Activiteit)-MIN(ROW(Activiteit))+1),ROWS($B$3:B90)))&CHAR(10),\"\")","v":""},null,{"$f":"IFERROR(INDEX(Activiteit,SMALL(IF(Doel=$F$2,ROW(Activiteit)-MIN(ROW(Activiteit))+1),ROWS($B$3:B90)))&CHAR(10),\"\")","v":""},null,{"$f":"IFERROR(INDEX(Activiteit,SMALL(IF(Doel=$H$2,ROW(Activiteit)-MIN(ROW(Activiteit))+1),ROWS($B$3:B90)))&CHAR(10),\"\")","v":""}]
[null,{"$f":"IFERROR(INDEX(Activiteit,SMALL(IF(Doel=$B$2,ROW(Activiteit)-MIN(ROW(Activiteit))+1),ROWS($B$3:B91)))&\" \"&CHAR(10)&(INDEX(Resultaat,SMALL(IF(Doel=$B$2,ROW(Resultaat)-MIN(ROW(Resultaat))+1),ROWS($B$3:B91))))&CHAR(10),\"\")","v":""},null,{"$f":"IFERROR(INDEX(Activiteit,SMALL(IF(Doel=$D$2,ROW(Activiteit)-MIN(ROW(Activiteit))+1),ROWS($B$3:B91)))&CHAR(10),\"\")","v":""},null,{"$f":"IFERROR(INDEX(Activiteit,SMALL(IF(Doel=$F$2,ROW(Activiteit)-MIN(ROW(Activiteit))+1),ROWS($B$3:B91)))&CHAR(10),\"\")","v":""},null,{"$f":"IFERROR(INDEX(Activiteit,SMALL(IF(Doel=$H$2,ROW(Activiteit)-MIN(ROW(Activiteit))+1),ROWS($B$3:B91)))&CHAR(10),\"\")","v":""}]
[null,{"$f":"IFERROR(INDEX(Activiteit,SMALL(IF(Doel=$B$2,ROW(Activiteit)-MIN(ROW(Activiteit))+1),ROWS($B$3:B92)))&\" \"&CHAR(10)&(INDEX(Resultaat,SMALL(IF(Doel=$B$2,ROW(Resultaat)-MIN(ROW(Resultaat))+1),ROWS($B$3:B92))))&CHAR(10),\"\")","v":""},null,{"$f":"IFERROR(INDEX(Activiteit,SMALL(IF(Doel=$D$2,ROW(Activiteit)-MIN(ROW(Activiteit))+1),ROWS($B$3:B92)))&CHAR(10),\"\")","v":""},null,{"$f":"IFERROR(INDEX(Activiteit,SMALL(IF(Doel=$F$2,ROW(Activiteit)-MIN(ROW(Activiteit))+1),ROWS($B$3:B92)))&CHAR(10),\"\")","v":""},null,{"$f":"IFERROR(INDEX(Activiteit,SMALL(IF(Doel=$H$2,ROW(Activiteit)-MIN(ROW(Activiteit))+1),ROWS($B$3:B92)))&CHAR(10),\"\")","v":""}]
[null,{"$f":"IFERROR(INDEX(Activiteit,SMALL(IF(Doel=$B$2,ROW(Activiteit)-MIN(ROW(Activiteit))+1),ROWS($B$3:B93)))&\" \"&CHAR(10)&(INDEX(Resultaat,SMALL(IF(Doel=$B$2,ROW(Resultaat)-MIN(ROW(Resultaat))+1),ROWS($B$3:B93))))&CHAR(10),\"\")","v":""},null,{"$f":"IFERROR(INDEX(Activiteit,SMALL(IF(Doel=$D$2,ROW(Activiteit)-MIN(ROW(Activiteit))+1),ROWS($B$3:B93)))&CHAR(10),\"\")","v":""},null,{"$f":"IFERROR(INDEX(Activiteit,SMALL(IF(Doel=$F$2,ROW(Activiteit)-MIN(ROW(Activiteit))+1),ROWS($B$3:B93)))&CHAR(10),\"\")","v":""},null,{"$f":"IFERROR(INDEX(Activiteit,SMALL(IF(Doel=$H$2,ROW(Activiteit)-MIN(ROW(Activiteit))+1),ROWS($B$3:B93)))&CHAR(10),\"\")","v":""}]
[null,{"$f":"IFERROR(INDEX(Activiteit,SMALL(IF(Doel=$B$2,ROW(Activiteit)-MIN(ROW(Activiteit))+1),ROWS($B$3:B94)))&\" \"&CHAR(10)&(INDEX(Resultaat,SMALL(IF(Doel=$B$2,ROW(Resultaat)-MIN(ROW(Resultaat))+1),ROWS($B$3:B94))))&CHAR(10),\"\")","v":""},null,{"$f":"IFERROR(INDEX(Activiteit,SMALL(IF(Doel=$D$2,ROW(Activiteit)-MIN(ROW(Activiteit))+1),ROWS($B$3:B94)))&CHAR(10),\"\")","v":""},null,{"$f":"IFERROR(INDEX(Activiteit,SMALL(IF(Doel=$F$2,ROW(Activiteit)-MIN(ROW(Activiteit))+1),ROWS($B$3:B94)))&CHAR(10),\"\")","v":""},null,{"$f":"IFERROR(INDEX(Activiteit,SMALL(IF(Doel=$H$2,ROW(Activiteit)-MIN(ROW(Activiteit))+1),ROWS($B$3:B94)))&CHAR(10),\"\")","v":""}]
[null,{"$f":"IFERROR(INDEX(Activiteit,SMALL(IF(Doel=$B$2,ROW(Activiteit)-MIN(ROW(Activiteit))+1),ROWS($B$3:B95)))&\" \"&CHAR(10)&(INDEX(Resultaat,SMALL(IF(Doel=$B$2,ROW(Resultaat)-MIN(ROW(Resultaat))+1),ROWS($B$3:B95))))&CHAR(10),\"\")","v":""},null,{"$f":"IFERROR(INDEX(Activiteit,SMALL(IF(Doel=$D$2,ROW(Activiteit)-MIN(ROW(Activiteit))+1),ROWS($B$3:B95)))&CHAR(10),\"\")","v":""},null,{"$f":"IFERROR(INDEX(Activiteit,SMALL(IF(Doel=$F$2,ROW(Activiteit)-MIN(ROW(Activiteit))+1),ROWS($B$3:B95)))&CHAR(10),\"\")","v":""},null,{"$f":"IFERROR(INDEX(Activiteit,SMALL(IF(Doel=$H$2,ROW(Activiteit)-MIN(ROW(Activiteit))+1),ROWS($B$3:B95)))&CHAR(10),\"\")","v":""}]
[null,{"$f":"IFERROR(INDEX(Activiteit,SMALL(IF(Doel=$B$2,ROW(Activiteit)-MIN(ROW(Activiteit))+1),ROWS($B$3:B96)))&\" \"&CHAR(10)&(INDEX(Resultaat,SMALL(IF(Doel=$B$2,ROW(Resultaat)-MIN(ROW(Resultaat))+1),ROWS($B$3:B96))))&CHAR(10),\"\")","v":""},null,{"$f":"IFERROR(INDEX(Activiteit,SMALL(IF(Doel=$D$2,ROW(Activiteit)-MIN(ROW(Activiteit))+1),ROWS($B$3:B96)))&CHAR(10),\"\")","v":""},null,{"$f":"IFERROR(INDEX(Activiteit,SMALL(IF(Doel=$F$2,ROW(Activiteit)-MIN(ROW(Activiteit))+1),ROWS($B$3:B96)))&CHAR(10),\"\")","v":""},null,{"$f":"IFERROR(INDEX(Activiteit,SMALL(IF(Doel=$H$2,ROW(Activiteit)-MIN(ROW(Activiteit))+1),ROWS($B$3:B96)))&CHAR(10),\"\")","v":""}]
[null,{"$f":"IFERROR(INDEX(Activiteit,SMALL(IF(Doel=$B$2,ROW(Activiteit)-MIN(ROW(Activiteit))+1),ROWS($B$3:B97)))&\" \"&CHAR(10)&(INDEX(Resultaat,SMALL(IF(Doel=$B$2,ROW(Resultaat)-MIN(ROW(Resultaat))+1),ROWS($B$3:B97))))&CHAR(10),\"\")","v":""},null,{"$f":"IFERROR(INDEX(Activiteit,SMALL(IF(Doel=$D$2,ROW(Activiteit)-MIN(ROW(Activiteit))+1),ROWS($B$3:B97)))&CHAR(10),\"\")","v":""},null,{"$f":"IFERROR(INDEX(Activiteit,SMALL(IF(Doel=$F$2,ROW(Activiteit)-MIN(ROW(Activiteit))+1),ROWS($B$3:B97)))&CHAR(10),\"\")","v":""},null,{"$f":"IFERROR(INDEX(Activiteit,SMALL(IF(Doel=$H$2,ROW(Activiteit)-MIN(ROW(Activiteit))+1),ROWS($B$3:B97)))&CHAR(10),\"\")","v":""}]
[null,{"$f":"IFERROR(INDEX(Activiteit,SMALL(IF(Doel=$B$2,ROW(Activiteit)-MIN(ROW(Activiteit))+1),ROWS($B$3:B98)))&\" \"&CHAR(10)&(INDEX(Resultaat,SMALL(IF(Doel=$B$2,ROW(Resultaat)-MIN(ROW(Resultaat))+1),ROWS($B$3:B98))))&CHAR(10),\"\")","v":""},null,{"$f":"IFERROR(INDEX(Activiteit,SMALL(IF(Doel=$D$2,ROW(Activiteit)-MIN(ROW(Activiteit))+1),ROWS($B$3:B98)))&CHAR(10),\"\")","v":""},null,{"$f":"IFERROR(INDEX(Activiteit,SMALL(IF(Doel=$F$2,ROW(Activiteit)-MIN(ROW(Activiteit))+1),ROWS($B$3:B98)))&CHAR(10),\"\")","v":""},null,{"$f":"IFERROR(INDEX(Activiteit,SMALL(IF(Doel=$H$2,ROW(Activiteit)-MIN(ROW(Activiteit))+1),ROWS($B$3:B98)))&CHAR(10),\"\")","v":""}]
[null,{"$f":"IFERROR(INDEX(Activiteit,SMALL(IF(Doel=$B$2,ROW(Activiteit)-MIN(ROW(Activiteit))+1),ROWS($B$3:B99)))&\" \"&CHAR(10)&(INDEX(Resultaat,SMALL(IF(Doel=$B$2,ROW(Resultaat)-MIN(ROW(Resultaat))+1),ROWS($B$3:B99))))&CHAR(10),\"\")","v":""},null,{"$f":"IFERROR(INDEX(Activiteit,SMALL(IF(Doel=$D$2,ROW(Activiteit)-MIN(ROW(Activiteit))+1),ROWS($B$3:B99)))&CHAR(10),\"\")","v":""},null,{"$f":"IFERROR(INDEX(Activiteit,SMALL(IF(Doel=$F$2,ROW(Activiteit)-MIN(ROW(Activiteit))+1),ROWS($B$3:B99)))&CHAR(10),\"\")","v":""},null,{"$f":"IFERROR(INDEX(Activiteit,SMALL(IF(Doel=$H$2,ROW(Activiteit)-MIN(ROW(Activiteit))+1),ROWS($B$3:B99)))&CHAR(10),\"\")","v":""}]
[null,{"$f":"IFERROR(INDEX(Activiteit,SMALL(IF(Doel=$B$2,ROW(Activiteit)-MIN(ROW(Activiteit))+1),ROWS($B$3:B100)))&\" \"&CHAR(10)&(INDEX(Resultaat,SMALL(IF(Doel=$B$2,ROW(Resultaat)-MIN(ROW(Resultaat))+1),ROWS($B$3:B100))))&CHAR(10),\"\")","v":""},null,{"$f":"IFERROR(INDEX(Activiteit,SMALL(IF(Doel=$D$2,ROW(Activiteit)-MIN(ROW(Activiteit))+1),ROWS($B$3:B100)))&CHAR(10),\"\")","v":""},null,{"$f":"IFERROR(INDEX(Activiteit,SMALL(IF(Doel=$F$2,ROW(Activiteit)-MIN(ROW(Activiteit))+1),ROWS($B$3:B100)))&CHAR(10),\"\")","v":""},null,{"$f":"IFERROR(INDEX(Activiteit,SMALL(IF(Doel=$H$2,ROW(Activiteit)-MIN(ROW(Activiteit))+1),ROWS($B$3:B100)))&CHAR(10),\"\")","v":""}]

{"sheet":"Over","index":2,"n_rows":6,"n_cols":1,"rows_kept":6}
["Over deze werkmap"]
["Gids voor schermlezers"]
["Er zijn 3 werkbladen in deze werkmap. \n\nRoadmap-gegevens\nAgile-roadmap\nOver\n\nDe instructies voor elk werkblad staan in kolom A, beginnend in cel A1 van elk werkblad. Ze zijn geschreven met verborgen tekst. Elke stap leidt u door de informatie in die rij. Elke volgende stap gaat verder in cel A2, A3 enzovoort, tenzij uitdrukkelijk anderszins vermeld, bijvoorbeeld wanneer de instructietekst voor de volgende stap \"Ga naar cel A6\" is. \n\nVerborgen tekst wordt niet afgedrukt.\n\nAls u deze instructies van een werkblad wilt verwijderen, verwijdert u gewoon kolom A.\n"]
["Over deze werkmap"]
["Voer in het werkblad Roadmap-gegevens mijlpaalgegevens in. Zorg dat u op Prioriteit sorteert, gevolgd door Mijlpaal, om de weergaven Voltooid, Huidig, Korte termijn en Toekomst in aflopende volgorde vast te leggen – waarbij items met de hoogste prioriteit bovenaan staan. De roadmap in het werkblad Agile-roadmap wordt automatisch bijgewerkt.\n"]
["Dit is de laatste instructie in dit werkblad."]